Workbook

Sheet Topics
A1: Topics | B1: Sheet Name (link to jump)
A2: Notes | B2: Notes
A3: Adding Sample Points to Find Probability | B3: ALL SP
B4: ALL SP-2
A5: Combinations and Permutations | B5: C & P
A6: Adding Laws for Probability | B6: Adding
A7: Multiplying Laws for Probability | B7: Multiply
B8: Cross Tab No DS
A9: Comprehensive Example From Cross Tabulated Tables | B9: Data Set
A10: Bayes' Theorem | B10: BT(1)
B11: BT(2)

Sheet Detailed Topic List
A1: Video25: | B1: Excel 2013 Statistical Analysis #25: Basics of Probability: Sample Points, Events & Event Probabilities
A2: Number | B2: Topic In Video and minute mark in Video. | C2: Time In Video | M2: Text
A3: =ROWS(A3:A$3) -> 1 | B3: =TRIM(REPLACE(M3,1,SEARCH(")",M3)+1,"")) -> Review Handwritten PDF Notes about Probability, Random Events, Sample Points, Sample Space, Count Rule For Size of Sample Space, Listing all Sample Points with Tree Diagram and Table, Methods of Probability such as Classical, Relative Frequency and Subjective, Requirements for Probability, Events and Probability of Events | C3: =TRIM(LEFT(M3,SEARCH(")",M3))) -> (00:12) | M3: (00:12) Review Handwritten PDF Notes about Probability, Random Events, Sample Points, Sample Space, Count Rule For Size of Sample Space, Listing all Sample Points with Tree Diagram and Table, Methods of Probability such as Classical, Relative Frequency and Subjective, Requirements for Probability, Events and Probability of Events
A4: =ROWS(A$3:A4) -> 2 | B4: =TRIM(REPLACE(M4,1,SEARCH(")",M4)+1,"")) -> In Excel: Experiment of Flipping Coin Three Times: Find all Sample Points, Calculate Probabilities and practice finding Probabilities of Events by listing all the sample points and then adding all the probabilities for each Sample Point to get the Probability of the Event | C4: =TRIM(LEFT(M4,SEARCH(")",M4))) -> (14:30) | M4: (14:30) In Excel: Experiment of Flipping Coin Three Times: Find all Sample Points, Calculate Probabilities and practice finding Probabilities of Events by listing all the sample points and then adding all the probabilities for each Sample Point to get the Probability of the Event
A5: =ROWS(A$3:A5) -> 3 | B5: Frequency Distribution Built from Sample Space in order to find Probabilities for Events | C5: (21:09) | M5: (21:09) Frequency Distribution Built from Sample Space in order to find Probabilities for Events
A6: =ROWS(A$3:A6) -> 4 | B6: In Excel: Experiment of Rolling Two Die: Find all Sample Points, Calculate Probabilities and practice finding Probabilities of Events by listing all the sample points and then adding all the probabilities for each Sample Point to get the Probability of the Event | C6: (23:46) | M6: (23:46) In Excel: Experiment of Rolling Two Die: Find all Sample Points, Calculate Probabilities and practice finding Probabilities of Events by listing all the sample points and then adding all the probabilities for each Sample Point to get the Probability of the Event
A8: Video26: | B8: Excel 2013 Statistical Analysis #26: Combinations & Permutations and Listing Sample Points
A9: Number | B9: Topic In Video and minute mark in Video. | C9: Time In Video | M9: Text
A10: =ROWS(A$10:A10) -> 1 | B10: =TRIM(REPLACE(M10,1,SEARCH(")",M10)+1,"")) -> Combinations & Permutations and Listing Sample Points | C10: =TRIM(LEFT(M10,SEARCH(")",M10))) -> (00:23) | M10: (00:23) Combinations & Permutations and Listing Sample Points
A11: =ROWS(A$10:A11) -> 2 | B11: =TRIM(REPLACE(M11,1,SEARCH(")",M11)+1,"")) -> ombinations: FACT and COMBIN functions and Listing Sample Points | C11: =TRIM(LEFT(M11,SEARCH(")",M11))) -> (02:30 ) | M11: (02:30 )Combinations: FACT and COMBIN functions and Listing Sample Points
A12: =ROWS(A$10:A12) -> 3 | B12: ermutations: FACT and PERMUT functions and Listing Sample Points | C12: (04:46) | M12: (04:46)Permutations: FACT and PERMUT functions and Listing Sample Points
A14: Video27: | B14: Excel 2013 Statistical Analysis #27: Adding Law of Probability: Examples from Raw Data & Cross Tab
A15: Number | B15: Topic In Video and minute mark in Video. | C15: Time In Video | M15: Text
A16: =ROWS(A$16:A16) -> 1 | B16: =TRIM(REPLACE(M16,1,SEARCH(")",M16)+1,"")) -> Discuss Handwritten notes for Adding Laws For Probability and cover the terms: Venn Diagram, Complement, Union, Intersection. | C16: =TRIM(LEFT(M16,SEARCH(")",M16))) -> (00:13) | M16: (00:13) Discuss Handwritten notes for Adding Laws For Probability and cover the terms: Venn Diagram, Complement, Union, Intersection.
A17: =ROWS(A$16:A17) -> 2 | B17: =TRIM(REPLACE(M17,1,SEARCH(")",M17)+1,"")) -> Excel: Counting for AND Events use COUNTIFS with Two Criteria | C17: =TRIM(LEFT(M17,SEARCH(")",M17))) -> (08:25) | M17: (08:25) Excel: Counting for AND Events use COUNTIFS with Two Criteria
A18: =ROWS(A$16:A18) -> 3 | B18: Excel: Counting for OR Events that are Mutually Exclusive use multiple COUNTIFS with One Condition/Criteria and simply add them. P(A OR B) = COUNTIFS(range,A)+COUNTIFS(range,B). | C18: (09:40) | M18: (09:40) Excel: Counting for OR Events that are Mutually Exclusive use multiple COUNTIFS with One Condition/Criteria and simply add them. P(A OR B) = COUNTIFS(range,A)+COUNTIFS(range,B).
A19: =ROWS(A$16:A19) -> 4 | B19: xcel: Counting for OR Events that are NOT Mutually Exclusive use multiple COUNTIFS with One Condition/Criteria and simply add them, then subtract a COUNTIFS with AND Criteria. P(A OR B) = COUNTIFS(range,A)+COUNTIFS(range,B) – COUNTIFS(rangeA,A,rangeB,B). | C19: (11:23) | M19: (11:23)Excel: Counting for OR Events that are NOT Mutually Exclusive use multiple COUNTIFS with One Condition/Criteria and simply add them, then subtract a COUNTIFS with AND Criteria. P(A OR B) = COUNTIFS(range,A)+COUNTIFS(range,B) – COUNTIFS(rangeA,A,rangeB,B).
A20: =ROWS(A$16:A20) -> 5 | B20: Compliment Rule | C20: (15:26) | M20: (15:26) Compliment Rule
A21: =ROWS(A$16:A21) -> 6 | B21: Adding Probabilities from Frequency Distribution | C21: (16:30) | M21: (16:30) Adding Probabilities from Frequency Distribution
A22: =ROWS(A$16:A22) -> 7 | B22: Adding Probabilities from Cross Tabulated Table with % of Grand Totals (Joint Probability Table) | C22: (17:38) | M22: (17:38) Adding Probabilities from Cross Tabulated Table with % of Grand Totals (Joint Probability Table)
A23: =ROWS(A$16:A23) -> 8 | B23: Frequency Distributions contain Mutually Exclusive categories. Examples of OR Events and Complement Events | C23: (21:32) | M23: (21:32) Frequency Distributions contain Mutually Exclusive categories. Examples of OR Events and Complement Events
A24: =ROWS(A$16:A24) -> 9 | B24: Adding events that are not Mutually Exclusive when you have just the Marginal and AND (Joint) probabilities. How to add when you don’t have original data set, a frequency distribution or a Cross Tabulated Table. | C24: (22:57) | M24: (22:57) Adding events that are not Mutually Exclusive when you have just the Marginal and AND (Joint) probabilities. How to add when you don’t have original data set, a frequency distribution or a Cross Tabulated Table.
A26: Video28: | B26: Excel 2013 Statistical Analysis #28: Multiplying Law of Probability, Conditional Probability, Independence
A27: Number | B27: Topic In Video and minute mark in Video. | C27: Time In Video | M27: Text
A28: =ROWS(A$28:A28) -> 1 | B28: =TRIM(REPLACE(M28,1,SEARCH(")",M28)+1,"")) -> Conditional Probability (3 Examples) | C28: =TRIM(LEFT(M28,SEARCH(")",M28))) -> (00:25) | M28: (00:25) Conditional Probability (3 Examples)
A29: =ROWS(A$28:A29) -> 2 | B29: =TRIM(REPLACE(M29,1,SEARCH(")",M29)+1,"")) -> Rule of Independence | C29: =TRIM(LEFT(M29,SEARCH(")",M29))) -> (10:30) | M29: (10:30) Rule of Independence
A30: =ROWS(A$28:A30) -> 3 | B30: Multiplying Law of Probability | C30: (12:13) | M30: (12:13) Multiplying Law of Probability
A31: =ROWS(A$28:A31) -> 4 | B31: Multiplying Rule for Events that are NOT Independent, One Sample Point. Multiplication Law for calculating probability of pulling three straight queens | C31: (13:49) | M31: (13:49) Multiplying Rule for Events that are NOT Independent, One Sample Point. Multiplication Law for calculating probability of pulling three straight queens
A32: =ROWS(A$28:A32) -> 5 | B32: Multiplying Rule for Events that are NOT Independent, One Sample Point. Multiplication Law for calculating probability of pulling Queen, Not Queen, Queen (calculating probability for single Sample Point). | C32: (17:06) | M32: (17:06) Multiplying Rule for Events that are NOT Independent, One Sample Point. Multiplication Law for calculating probability of pulling Queen, Not Queen, Queen (calculating probability for single Sample Point).
A33: =ROWS(A$28:A33) -> 6 | B33: Multiplying Rule for Events that are NOT Independent, More Than One Sample Point. Multiplication and Adding rules to calculate Probability of the Event “pulling two Queens in Three Tries” by calculating the probability for each sample point, then adding to get the probability for the Event. | C33: (18:40) | M33: (18:40) Multiplying Rule for Events that are NOT Independent, More Than One Sample Point. Multiplication and Adding rules to calculate Probability of the Event “pulling two Queens in Three Tries” by calculating the probability for each sample point, then adding to get the probability for the Event.
A34: =ROWS(A$28:A34) -> 7 | B34: Multiplying Rule for Events that are NOT Independent, More Than One Sample Point. Calculating Conditional Probability using HYPGEOM.DIST function. | C34: (21:10) | M34: (21:10) Multiplying Rule for Events that are NOT Independent, More Than One Sample Point. Calculating Conditional Probability using HYPGEOM.DIST function.
A35: =ROWS(A$28:A35) -> 8 | B35: Multiplying Rule for Events that ARE Independent, One Sample Point. (2 Examples) | C35: (23:00) | M35: (23:00) Multiplying Rule for Events that ARE Independent, One Sample Point. (2 Examples)
A36: =ROWS(A$28:A36) -> 9 | B36: Multiplying Rule for Events that ARE Independent, More Than One Sample Point by calculating all the Sample Points than adding to get the probability of the Event. | C36: (24:24) | M36: (24:24) Multiplying Rule for Events that ARE Independent, More Than One Sample Point by calculating all the Sample Points than adding to get the probability of the Event.
A37: =ROWS(A$28:A37) -> 10 | B37: Multiplying Rule for Events that ARE Independent, More Than One Sample Point with BINOM.DIST function. | C37: (26:00) | M37: (26:00) Multiplying Rule for Events that ARE Independent, More Than One Sample Point with BINOM.DIST function.
A38: =ROWS(A$28:A38) -> 11 | B38: Calculate Conditional Probability using the Multiplication Rule | C38: (27:00) | M38: (27:00) Calculate Conditional Probability using the Multiplication Rule
A39: =ROWS(A$28:A39) -> 12 | B39: Calculate AND, OR and Conditional Probability From Cross Tabulated Tables and Joint Probability Tables. | C39: (28:40) | M39: (28:40) Calculate AND, OR and Conditional Probability From Cross Tabulated Tables and Joint Probability Tables.
A40: =ROWS(A$28:A40) -> 13 | B40: Summary | C40: (32:30) | M40: (32:30) Summary
A42: Video29: | B42: Excel 2013 Statistical Analysis #29: Create Joint Probability Table from Raw Data & Calc. Event Probs.
A43: Number | B43: Topic In Video and minute mark in Video. | C43: Time In Video | M43: Text
A44: =ROWS(A$44:A44) -> 1 | B44: =TRIM(REPLACE(M44,1,SEARCH(")",M44)+1,"")) -> Create Joint Probability Table from Raw Data | C44: =TRIM(LEFT(M44,SEARCH(")",M44))) -> (00:12) | M44: (00:12) Create Joint Probability Table from Raw Data
A45: =ROWS(A$44:A45) -> 2 | B45: =TRIM(REPLACE(M45,1,SEARCH(")",M45)+1,"")) -> Calculate Single Event Probability, And Event probability, OR Event Probability when Events are Mutually Exclusive, OR Event Probability when Events are NOT Mutually Exclusive, and a Conditional Probability, all from a Joint Probability Table | C45: =TRIM(LEFT(M45,SEARCH(")",M45))) -> (02:42) | M45: (02:42) Calculate Single Event Probability, And Event probability, OR Event Probability when Events are Mutually Exclusive, OR Event Probability when Events are NOT Mutually Exclusive, and a Conditional Probability, all from a Joint Probability Table
A47: Video30: | B47: Excel 2013 Statistical Analysis #30: Bayes’ Theorem to Calculate Posterior Probabilities
A48: Number | B48: Topic In Video and minute mark in Video. | C48: Time In Video | M48: Text
A49: =ROWS(A$49:A49) -> 1 | B49: =TRIM(REPLACE(M49,1,SEARCH(")",M49)+1,"")) -> Define and give example of Bayes’ Theorem with handwritten notes | C49: =TRIM(LEFT(M49,SEARCH(")",M49))) -> (00:11) | M49: (00:11) Define and give example of Bayes’ Theorem with handwritten notes
A50: =ROWS(A$49:A50) -> 2 | B50: =TRIM(REPLACE(M50,1,SEARCH(")",M50)+1,"")) -> Discussion about how Bayes’ Formula is like of earlier Conditional Probability Formulas: (And/Joint Probability)/(Marginal Probability) | C50: =TRIM(LEFT(M50,SEARCH(")",M50))) -> (05:17) | M50: (05:17) Discussion about how Bayes’ Formula is like of earlier Conditional Probability Formulas: (And/Joint Probability)/(Marginal Probability)
A51: =ROWS(A$49:A51) -> 3 | B51: Excel Example 1 with Tree Diagram (Probability Tree) and Table Format for calculating Bayes’ Theorem. CPA Score Example. | C51: (08:45) | M51: (08:45) Excel Example 1 with Tree Diagram (Probability Tree) and Table Format for calculating Bayes’ Theorem. CPA Score Example.
A52: =ROWS(A$49:A52) -> 4 | B52: Excel Example 2: Table Format for calculating Bayes’ Theorem. Police Data Example. | C52: (12:52) | M52: (12:52) Excel Example 2: Table Format for calculating Bayes’ Theorem. Police Data Example.
A53: =ROWS(A$49:A53) -> 5 | B53: Single Cell Formula for Bayes’ Theorem using SUMPRODUCT function. | C53: (14:41) | M53: (14:41) Single Cell Formula for Bayes’ Theorem using SUMPRODUCT function.

Sheet Keyboards
A1: Primary Key | B1: Action | C1: Keyboard Short Cut | D1: Category
A2: 1 | B2: Move the Active Worksheet up or down | C2: Ctrl + PageUp/PageDown | D2: Navigation
A3: 2 | B3: Put content in Cell and move selected Cell down | C3: Enter | D3: Entering Data in a Cell
A4: 3 | B4: Put content in Cell and keep Cell selected | C4: Ctrl + Enter | D4: Entering Data in a Cell
A5: 4 | B5: Undo | C5: Ctrl + Z | D5: Basic
A6: 5 | B6: Copy | C6: Ctrl + C | D6: Basic
A7: 6 | B7: Paste | C7: Ctrl + V | D7: Basic
A8: 7 | B8: Cut | C8: Ctrl + X | D8: Basic
A9: 8 | B9: Bold | C9: Ctrl + B | D9: Basic
A10: 9 | B10: Put Cell in Edit Mode | C10: F2 | D10: Formula Edit Mode Keys
A11: 10 | B11: Arrow to point to a formula Cell Reference | C11: Arrow Keys | D11: Formula Edit Mode Keys
A12: 11 | B12: SUM function | C12: Alt + = | D12: Formula Edit Mode Keys
A13: 12 | B13: Delete Cell content | C13: Delete | D13: Basic
A14: 13 | B14: Lock Cell Reference (make Absolute) | C14: F4 | D14: Formula Edit Mode Keys
A15: 14 | B15: Put content in Cell and move selected Cell to right | C15: Tab | D15: Entering Data in a Cell
A16: 15 | B16: Put content in Cell and move selected Cell to left | C16: Shift + Tab | D16: Entering Data in a Cell
A17: 16 | B17: Jump to bottom of data set (Current Range) | C17: Ctrl + Arrow | D17: Navigation
A18: 17 | B18: Select to bottom of data set (Current Range) | C18: Ctrl + Shift + Enter | D18: Formula Edit Mode Keys
A19: 18 | B19: Put content in Cell and move selected Cell up | C19: Shift + Enter | D19: Entering Data in a Cell
A20: 19 | B20: Jump Back to Active Cell | C20: Ctrl + Backspace | D20: Formula Edit Mode Keys
A21: 20 | B21: Open Create PivotTable dialog box | C21: Alt, N, V | D21: PivotTable
A22: 21 | B22: Format Chart Element with Task Pane | C22: Ctrl + 1 | D22: Chart
A23: 22 | B23: Open Format Cells dialog box | C23: Ctrl + 1 | D23: Format Cells
A24: 23 | B24: Jump to Cell A1 | C24: Ctrl + Home | D24: Navigation
A25: 24 | B25: Jump to last Cell used | C25: Ctrl + End | D25: Navigation
A26: 25 | B26: Open Control Panel | C26: Window + Pause/Break | D26: Window Key
A27: 26 | B27: Show Desktop | C27: Window + D or Window + M | D27: Window Key
A28: 27 | B28: Select Whole Table (Select Current Region) | C28: Ctrl + * (on Number Pad) or Ctrl + Shift + 8 | D28: Selection
A29: 28 | B29: Select Ranges not next to each other (noncontiguous ranges) | C29: Ctrl + Mouse Click | D29: Selection
A30: 29 | B30: Open Print Options and Print Preview view | C30: Ctrl + P | D30: Basic
A31: 30 | B31: Close Print Options and Print Preview view | C31: Esc | D31: Basic
A32: 31 | B32: New Workbook File | C32: Ctrl + N | D32: Basic
A33: 32 | B33: Save As Dialog Box | C33: F12 | D33: Basic
A34: 33 | B34: Find and Replace | C34: Ctrl + Home | D34: Basic
A35: 34

Sheet Notes
A1: See handwritten notes in PDF download at web site
A3: Probability
A4: E = Event, P = Probability, then P(E) = A Number between 0 and 1, inclusive.
A5: Estimate of the unknown future
A6: Random Experiment:
A7: 1) Well Defined Outcomes
A8: 2) Any single Trial only one outcome can occur
A9: 3) Outcome occurs by chance
A10: Multi-Step Experiment:
A11: Random Experiment with more than 1 Step/Trial
A12: Sample Point
A13: Sample Point = Experimental Outcome
A14: Sample Space
A15: List of all Possible Sample Points/Experimental Outcomes
A16: {Total Number Sample Points} for Multi-Step Experiment:
A17: k = Number of Steps
A18: nk = Outcomes for particular Step
A19: {Total Number Sample Points} = n1 + n2 + … nk
A20: If number of outcomes is same for each Step, {Total Number Sample Points} = n^k
A21: Special Count Rules:
A22: Combinations = # of Sample Points when selecting n objects from a set of N objects [order does not matter, (2,1) same as (1,2)]
A23: N!/((n!*(N-n)!) or use COMBIN Excel function
A24: Permutations = # of Sample Points when selecting n objects from a set of N objects [order does matter, (2,1) different than (1,2)]
A25: N!/(N-n)! or use PERMUT Excel function
A26: Assigning Probability
A27: Classical = All Sample Points are equally likely
A28: Relative Frequency = Data from past is Relative Frequency Table that has categories which are:
A29: Mutually Exclusive (no item fits into more than one category) and Collectively Exhaustive (enough categories to count everything).
A30: Subjective = Outcomes not equally likely, Little past data, Use best information you can find but it will be your personal belief
A31: Requirements for Assigning Probabilities:
A32: 1) All Sample Points must have a probability between 0 and 1, inclusive
A33: 2) Sum of all Sample Point Probabilities = 1
A34: Event
A35: Collection of 1 or more Sample Points
A36: Probability of an Event
A37: Sum of the probabilities of the Sample Points in the Event.
A38: Methods for listing all Sample Points
A39: Tree Diagram
A40: Table Format
A41: Cross Tabulated Table Format
A42: Venn Diagram
A43: Diagram that shows the relationship between different events and the Sample Space
A44: Complement
A45: For Event A, the complement, Ac: Ac = 1 -A
A46: Mutually Exclusive
A47: 2 Events are mutually exclusive if they have no sample points in common.
A48: If one event occurs, the other does not!
A49: Union = OR = "1 or the other or both" = "At lest one" = "1 or more" = "Either" = È
A50: OR Event = all sample points for 1 or the other or both
A51: Adding Rule is used for OR Events
A52: Intersection = AND = Both = Joint = Concurrent = 2 TRUEs = Ç
A53: AND Event = All sample points that contain TRUEs for both conditions or criteria
A54: Multiplying Rule is used for AND Events
A55: Adding Law for Probability
A56: Mutually Exclusive Events ==> P(A OR B) = P(A) + P(B)
A57: For counting with OR Criteria in Excel you can use: COUNTIFS(range,"A") + COUNTIFS(range,"B")
A58: Events that are NOT Mutually Exclusive ==> P(A OR B) = P(A) + P(B) - P(A AND B), must subtract AND so you don't Double Count!
A59: For counting with OR Criteria in Excel you can use: COUNTIFS(range,"A") + COUNTIFS(range,"B") - COUNTIFS(rangeA,"A",rangeB,"B")
A60: From Inside a Cross Tabulated Table: Marginal
A61: Conditional Probability
A62: "The probability of an event given that another event already occurred" or "If another event already occurred, what is probability of a particular event"
A63: After the first event has occurred, the Sample Space has changed.
A64: P(A | B) = "Probability of A, given that B has occurred" or "If B occurred, what is probability of A"
A65: P(A | B) = P(A AND B)/P(B) or P(B | A) = P(A AND B)/P(A)
A66: Independent Events
A67: 2 Events are independent if the probability of one event is not affected by the occurrence of the other event
A68: P(A | B) = P(A), B has no affect on A or P(B | A) = P(B), A has no affect on B
A69: Examples of Independent:
A70: Rolling a 6 on a die does not affect the next roll.
A71: Whether or not Google stock goes up does not affect whether Whole Foods stock goes up.
A72: Examples of NOT Independent:
A73: P(Q1) = 4/52, P(Q2 | Q1) = 3/51, P(Q2 | Q1) is affected. These events are not Independent.
A74: Whether or not an Oil Prices change probably does affect how UPS stock moves. These events are not independent.
A75: Dependent Events
A76: 2 Events are NOT independent are said to be Dependent
A77: Multiplying Law for Probability
A78: Independent Events ==> P(A AND B) = P(A)*P(B)
A79: For Events that are NOT Independent ==> P(A AND B) = P(A)*P(B | A) or P(A AND B) = P(B*P(A | B)
A80: Joint Probability Table
A81: Joint Probability Table = Cross Tabulated Table with "% of Grand Totals" (Chapter 2)
A82: "Marginal" Probabilities are the percentages in the total rows
A83: "Joint" or "AND" Probabilities are on the inside of the table
A84: "Conditional" Probabilities = "AND"/"Marginal"
A85: "OR" Probabilities = "Marginal" + "Marginal" - "AND"
A86: Bayes Theorem
A87: Used when we have initial probabilities, called Prior Probabilities, we are given/get new information,
A88: and we want to update the prior probabilities by calculating Posterior Probabilities.
A89: Prior Probabilities
A90: Events for Prior Probabilities must be Mutually Exclusive and Collectively Exhaustive
A91: Prior Probabilities are often Subjective
A92: If Events for Prior Probabilities are A1 and A2 and Condition is B, Formulas are:
A93: P(A1 | B) = P(A1 AND B)/(P(A1 AND B) + P(A2 AND B)) = Conditional = AND/Marginal
A94: P(A2 | B) = P(A2 AND B)/(P(A2 AND B) + P(A1 AND B)) = Conditional = AND/Marginal

Sheet ALL SP
A1: Multi-Step Random Experiment: Flip a Coin 3 Times.
A2: # Steps = k =
A3: Outcomes Possible = n1
A4: Outcomes Possible = n2
A5: Outcomes Possible = n3
A6: Total Sample Points (SP)
A8: Sample Point SP | B8: Step 1 | C8: Step 2 | D8: Step 3 | E8: Sample Space | F8: P(SP) | H8: =IF($F$17=1,"Requirement 1 for Assigning Probabilities?","") -> 
E9: =IF(COUNTA(B9:D9)=3,"("&B9&", "&C9&", "&D9&")","") ->  | H9: =IF($F$17=1,"<<== Each P(SP) is between 0 and 1, inclusive?","") -> 
E10: =IF(COUNTA(B10:D10)=3,"("&B10&", "&C10&", "&D10&")","") -> 
H16: =IF($F$17=1,"Requirement 2 for Assigning Probabilities?","") -> 
H17: =IF($F$17=1,"<<== SUM of all Probabilities = 1.","") -> 
A18: Event: Collection of 1 or more Sample Points
A19: Probability of an Event: Sum of the probabilities of the Sample Points in the Event.
A20: Event | B20: P(E)
A21: P(3 Straight Heads) | D21: SP =
A22: P(2 Tails in 3 tries) | D22: SP =
A23: P(1 Tail in 3 Tries) | D23: SP =
A25: * Sample Points and Events provide the foundation for the study of probability.
A27: Tree Diagram
B28: Step 1 | C28: Step 2 | D28: Step 3 | E28: Sample Space
D30: Head | E30: (H, H, H)
C31: Head
D32: Tail | E32: (H, H, T)
B33: Head
D34: Head | E34: (H, T, H)
C35: Tail
D36: Tail | E36: (H, T, T)
D38: Head | E38: (T, H, H)
C39: Head
D40: Tail | E40: (T, H, T)
B41: Tail
D42: Head | E42: (T, T, H)
C43: Tail
D44: Tail | E44: (T, T, T)

Sheet ALL SP (an)
A1: Multi-Step Random Experiment: Flip a Coin 3 Times.
A2: # Steps = k = | B2: 3
A3: Outcomes Possible = n1 | B3: 2
A4: Outcomes Possible = n2 | B4: 2
A5: Outcomes Possible = n3 | B5: 2
A6: Total Sample Points (SP) | B6: =B5*B4*B3 -> 8 | C6: =B3^B2 -> 8
A8: Sample Point SP | B8: Step 1 | C8: Step 2 | D8: Step 3 | E8: Sample Space | F8: P(SP) | H8: =IF($F$17=1,"Requirement 1 for Assigning Probabilities?","") -> Requirement 1 for Assigning Probabilities?
A9: 1 | B9: H | C9: H | D9: H | E9: ="("&B9&","&C9&","&D9&")" -> (H,H,H) | F9: =1/$B$6 -> 0.125 | H9: =IF($F$17=1,"<<== Each P(SP) is between 0 and 1, inclusive?","") -> <<== Each P(SP) is between 0 and 1, inclusive?
A10: 2 | B10: H | C10: H | D10: T | E10: (H,H,T) | F10: 0.125
A11: 3 | B11: H | C11: T | D11: H | E11: (H,T,H) | F11: 0.125
A12: 4 | B12: T | C12: H | D12: H | E12: (T,H,H) | F12: 0.125
A13: 5 | B13: T | C13: T | D13: H | E13: (T,T,H) | F13: 0.125
A14: 6 | B14: T | C14: H | D14: T | E14: (T,H,T) | F14: 0.125
A15: 7 | B15: H | C15: T | D15: T | E15: (H,T,T) | F15: 0.125
A16: 8 | B16: T | C16: T | D16: T | E16: (T,T,T) | F16: 0.125 | H16: =IF($F$17=1,"Requirement 2 for Assigning Probabilities?","") -> Requirement 2 for Assigning Probabilities?
E17: Total | F17: =SUM(F9:F16) -> 1 | H17: =IF($F$17=1,"<<== SUM of all Probabilities = 1.","") -> <<== SUM of all Probabilities = 1.
A18: Event: Collection of 1 or more Sample Points
A19: Probability of an Event: Sum of the probabilities of the Sample Points in the Event.
A20: Event | B20: P(E)
A21: P(3 Straight Heads) | B21: =SUM(F9) -> 0.125 | D21: SP = | E21: =E9 -> (H,H,H)
A22: P(2 Tails in 3 tries) | B22: =SUM(F13:F15) -> 0.375 | D22: SP = | E22: =E13 -> (T,T,H) | F22: =E14 -> (T,H,T) | G22: =E15 -> (H,T,T)
A23: P(1 Tail in 3 Tries) | B23: =SUM(F10:F12) -> 0.375 | D23: SP = | E23: =E12 -> (T,H,H) | F23: =E11 -> (H,T,H) | G23: =E11 -> (H,T,H)
A25: * Sample Points and Events provide the foundation for the study of probability.
A27: Tree Diagram
B28: Step 1 | C28: Step 2 | D28: Step 3 | E28: Sample Space
D30: Head | E30: (H, H, H)
C31: Head
D32: Tail | E32: (H, H, T)
B33: Head
D34: Head | E34: (H, T, H)
C35: Tail
D36: Tail | E36: (H, T, T)
D38: Head | E38: (T, H, H)
C39: Head
D40: Tail | E40: (T, H, T)
B41: Tail
D42: Head | E42: (T, T, H)
C43: Tail
D44: Tail | E44: (T, T, T)

Sheet RF Table
A1: Multi-Step Random Experiment: Flip a Coin 3 Times. | I1: Event | J1: P(E)
A2: # Steps = k = | B2: 3 | I2: P(3 Straight Heads)
A3: n for each outcome | B3: 2 | I3: P(2 Tails in 3 tries)
A4: Total Sample Points (SP) | B4: =B3^B2 -> 8 | C4: Total Sample Points | I4: P(1 Tail in 3 Tries)
J6: Event: Collection of 1 or more Sample Points
C7: Define Success as Head | F7: Tails = | G7: T | J7: Probability of an Event: Sum of the probabilities of the Sample Points in the Event.
A8: Sample Point SP | B8: Step 1 | C8: Step 2 | D8: Step 3 | E8: Sample Space | F8: P(SP) | G8: Count Tails | I8: Event = Random Variable # of "T" in 3 Flips | J8: Frequency | K8: P(X) | L8: Relative Frequency | M8: SUMIFS
A9: 1 | B9: H | C9: H | D9: H | E9: ="("&B9&","&C9&","&D9&")" -> (H,H,H) | F9: =1/$B$4 -> 0.125 | G9: =COUNTIFS(B9:D9,$G$7) -> 0 | I9: 3 | K9: ="P("&I9&" "&$G$7&" in "&$B$2&" Flips)" -> P(3 T in 3 Flips) | O9: <<== Each between 1 and 0, inclusive
A10: 2 | B10: H | C10: H | D10: T | E10: (H,H,T) | F10: 0.125 | G10: 1 | I10: 2 | K10: ="P("&I10&" "&$G$7&" in "&$B$2&" Flips)" -> P(2 T in 3 Flips)
A11: 3 | B11: H | C11: T | D11: H | E11: (H,T,H) | F11: 0.125 | G11: 1 | I11: 1 | K11: P(1 T in 3 Flips)
A12: 4 | B12: T | C12: H | D12: H | E12: (T,H,H) | F12: 0.125 | G12: 1 | I12: 0 | K12: P(0 T in 3 Flips)
A13: 5 | B13: T | C13: T | D13: H | E13: (T,T,H) | F13: 0.125 | G13: 2 | I13: Total | O13: <<== Sum = 1
A14: 6 | B14: T | C14: H | D14: T | E14: (T,H,T) | F14: 0.125 | G14: 2
A15: 7 | B15: H | C15: T | D15: T | E15: (H,T,T) | F15: 0.125 | G15: 2
A16: 8 | B16: T | C16: T | D16: T | E16: (T,T,T) | F16: 0.125 | G16: 3
E17: Total | F17: =SUM(F9:F16) -> 1

Sheet RF Table (2)
A1: Multi-Step Random Experiment: Flip a Coin 3 Times. | I1: Event | J1: P(E)
A2: # Steps = k = | B2: 3 | I2: P(3 Straight Heads) | J2: =L9 -> 0.125
A3: n for each outcome | B3: 2 | I3: P(2 Tails in 3 tries) | J3: =L10 -> 0.375
A4: Total Sample Points (SP) | B4: =B3^B2 -> 8 | C4: Total Sample Points | I4: P(1 Tail in 3 Tries) | J4: =L11 -> 0.375
J6: Event: Collection of 1 or more Sample Points
C7: Define Success as Head | F7: Tails = | G7: T | J7: Probability of an Event: Sum of the probabilities of the Sample Points in the Event.
A8: Sample Point SP | B8: Step 1 | C8: Step 2 | D8: Step 3 | E8: Sample Space | F8: P(SP) | G8: Count Tails | I8: Event = Random Variable # of "T" in 3 Flips | J8: Frequency | K8: P(X) | L8: Relative Frequency | M8: SUMIFS
A9: 1 | B9: H | C9: H | D9: H | E9: ="("&B9&","&C9&","&D9&")" -> (H,H,H) | F9: =1/$B$4 -> 0.125 | G9: =COUNTIFS(B9:D9,$G$7) -> 0 | I9: 3 | J9: =COUNTIFS($G$9:$G$16,I9) -> 1 | K9: =IF(J9="","","P(Of Geeting "&I9&" Tails in "&$B$2&" Flips)") -> P(Of Geeting 3 Tails in 3 Flips) | L9: =J9/$J$13 -> 0.125 | M9: =SUMIFS($F$9:$F$16,$G$9:$G$16,I9) -> 0.125 | O9: <<== Each between 1 and 0, inclusive
A10: 2 | B10: H | C10: H | D10: T | E10: (H,H,T) | F10: 0.125 | G10: 1 | I10: 2 | J10: =COUNTIFS($G$9:$G$16,I10) -> 3 | K10: P(Of Geeting 2 Tails in 3 Flips) | L10: =J10/$J$13 -> 0.375 | M10: =SUMIFS($F$9:$F$16,$G$9:$G$16,I10) -> 0.375
A11: 3 | B11: H | C11: T | D11: H | E11: (H,T,H) | F11: 0.125 | G11: 1 | I11: 1 | J11: =COUNTIFS($G$9:$G$16,I11) -> 3 | K11: P(Of Geeting 1 Tails in 3 Flips) | L11: =J11/$J$13 -> 0.375 | M11: =SUMIFS($F$9:$F$16,$G$9:$G$16,I11) -> 0.375
A12: 4 | B12: T | C12: H | D12: H | E12: (T,H,H) | F12: 0.125 | G12: 1 | I12: 0 | J12: =COUNTIFS($G$9:$G$16,I12) -> 1 | K12: P(Of Geeting 0 Tails in 3 Flips) | L12: =J12/$J$13 -> 0.125 | M12: =SUMIFS($F$9:$F$16,$G$9:$G$16,I12) -> 0.125
A13: 5 | B13: T | C13: T | D13: H | E13: (T,T,H) | F13: 0.125 | G13: 2 | I13: Total | J13: =SUM(J9:J12) -> 8 | L13: =SUM(L9:L12) -> 1 | M13: =SUM(M9:M12) -> 1 | O13: <<== Sum = 1
A14: 6 | B14: T | C14: H | D14: T | E14: (T,H,T) | F14: 0.125 | G14: 2
A15: 7 | B15: H | C15: T | D15: T | E15: (H,T,T) | F15: 0.125 | G15: 2
A16: 8 | B16: T | C16: T | D16: T | E16: (T,T,T) | F16: 0.125 | G16: 3
E17: Total | F17: =SUM(F9:F16) -> 1

Sheet ALL SP-2
A1: Experiment = Roll Dice (2 die) | D1: Event | E1: P(E)
A2: # of Steps or Trials = | B2: 2 | D2: P(Sum of 2) | G2: Sample Points =
A3: Possible outcomes from 1 die | B3: 6 | D3: P(Sum of 4) | G3: Sample Points =
A4: Total Sample Points | D4: P(Sum of 11) | G4: Sample Points =
A7: Sample Point SP | B7: Step 1 | C7: Step 2 | D7: Sample Space | E7: P(SP) | F7: Total

Sheet ALL SP-2 (an)
A1: Experiment = Roll Dice (2 die) | D1: Event | E1: P(E)
A2: # of Steps or Trials = | B2: 2 | D2: P(Sum of 2) | E2: =E8 -> 0.02777777778 | G2: Sample Points = | H2: =D8 -> (1,1)
A3: Possible outcomes from 1 die | B3: 6 | D3: P(Sum of 4) | E3: =E10+E15+E20 -> 0.08333333333 | G3: Sample Points = | H3: =D10 -> (3,1) | I3: =D15 -> (2,2) | J3: =D20 -> (1,3)
A4: Total Sample Points | B4: =B3^B2 -> 36 | D4: P(Sum of 11) | E4: =E37+E42 -> 0.05555555556 | G4: Sample Points = | H4: =D37 -> (6,5) | I4: =D42 -> (5,6)
A7: Sample Point SP | B7: Step 1 | C7: Step 2 | D7: Sample Space | E7: P(SP) | F7: Total | H7: Possible Outcomes From Rolling 2 Die | I7: Frequency | J7: Relative Frequency
A8: 1 | B8: 1 | C8: 1 | D8: ="("&B8&","&C8&")" -> (1,1) | E8: =1/36 -> 0.02777777778 | F8: =SUM(B8:C8) -> 2 | H8: 2 | I8: 1 | J8: 0.02777777778 | L8: <<== Each between 0 and 1, inclusive
A9: 2 | B9: 2 | C9: 1 | D9: (2,1) | E9: 0.02777777778 | F9: 3 | H9: 3 | I9: 2 | J9: 0.05555555556
A10: 3 | B10: 3 | C10: 1 | D10: (3,1) | E10: 0.02777777778 | F10: 4 | H10: 4 | I10: 3 | J10: 0.08333333333
A11: 4 | B11: 4 | C11: 1 | D11: (4,1) | E11: 0.02777777778 | F11: 5 | H11: 5 | I11: 4 | J11: 0.1111111111
A12: 5 | B12: 5 | C12: 1 | D12: (5,1) | E12: 0.02777777778 | F12: 6 | H12: 6 | I12: 5 | J12: 0.1388888889
A13: 6 | B13: 6 | C13: 1 | D13: (6,1) | E13: 0.02777777778 | F13: 7 | H13: 7 | I13: 6 | J13: 0.1666666667
A14: 7 | B14: 1 | C14: 2 | D14: (1,2) | E14: 0.02777777778 | F14: 3 | H14: 8 | I14: 5 | J14: 0.1388888889
A15: 8 | B15: 2 | C15: 2 | D15: (2,2) | E15: 0.02777777778 | F15: 4 | H15: 9 | I15: 4 | J15: 0.1111111111
A16: 9 | B16: 3 | C16: 2 | D16: (3,2) | E16: 0.02777777778 | F16: 5 | H16: 10 | I16: 3 | J16: 0.08333333333
A17: 10 | B17: 4 | C17: 2 | D17: (4,2) | E17: 0.02777777778 | F17: 6 | H17: 11 | I17: 2 | J17: 0.05555555556
A18: 11 | B18: 5 | C18: 2 | D18: (5,2) | E18: 0.02777777778 | F18: 7 | H18: 12 | I18: 1 | J18: 0.02777777778
A19: 12 | B19: 6 | C19: 2 | D19: (6,2) | E19: 0.02777777778 | F19: 8 | H19: Grand Total | I19: 36 | J19: 1 | L19: SUM to 1
A20: 13 | B20: 1 | C20: 3 | D20: (1,3) | E20: 0.02777777778 | F20: 4
A21: 14 | B21: 2 | C21: 3 | D21: (2,3) | E21: 0.02777777778 | F21: 5
A22: 15 | B22: 3 | C22: 3 | D22: (3,3) | E22: 0.02777777778 | F22: 6
A23: 16 | B23: 4 | C23: 3 | D23: (4,3) | E23: 0.02777777778 | F23: 7
A24: 17 | B24: 5 | C24: 3 | D24: (5,3) | E24: 0.02777777778 | F24: 8
A25: 18 | B25: 6 | C25: 3 | D25: (6,3) | E25: 0.02777777778 | F25: 9
A26: 19 | B26: 1 | C26: 4 | D26: (1,4) | E26: 0.02777777778 | F26: 5
A27: 20 | B27: 2 | C27: 4 | D27: (2,4) | E27: 0.02777777778 | F27: 6
A28: 21 | B28: 3 | C28: 4 | D28: (3,4) | E28: 0.02777777778 | F28: 7
A29: 22 | B29: 4 | C29: 4 | D29: (4,4) | E29: 0.02777777778 | F29: 8
A30: 23 | B30: 5 | C30: 4 | D30: (5,4) | E30: 0.02777777778 | F30: 9
A31: 24 | B31: 6 | C31: 4 | D31: (6,4) | E31: 0.02777777778 | F31: 10
A32: 25 | B32: 1 | C32: 5 | D32: (1,5) | E32: 0.02777777778 | F32: 6
A33: 26 | B33: 2 | C33: 5 | D33: (2,5) | E33: 0.02777777778 | F33: 7
A34: 27 | B34: 3 | C34: 5 | D34: (3,5) | E34: 0.02777777778 | F34: 8
A35: 28 | B35: 4 | C35: 5 | D35: (4,5) | E35: 0.02777777778 | F35: 9
A36: 29 | B36: 5 | C36: 5 | D36: (5,5) | E36: 0.02777777778 | F36: 10
A37: 30 | B37: 6 | C37: 5 | D37: (6,5) | E37: 0.02777777778 | F37: 11
A38: 31 | B38: 1 | C38: 6 | D38: (1,6) | E38: 0.02777777778 | F38: 7
A39: 32 | B39: 2 | C39: 6 | D39: (2,6) | E39: 0.02777777778 | F39: 8
A40: 33 | B40: 3 | C40: 6 | D40: (3,6) | E40: 0.02777777778 | F40: 9
A41: 34 | B41: 4 | C41: 6 | D41: (4,6) | E41: 0.02777777778 | F41: 10
A42: 35 | B42: 5 | C42: 6 | D42: (5,6) | E42: 0.02777777778 | F42: 11
A43: 36 | B43: 6 | C43: 6 | D43: (6,6) | E43: 0.02777777778 | F43: 12

Sheet C & P
A1: Randomly select 2 of 4 boomerangs to test (order does not matter):
A3: Boomerang | B3: Quad | C3: Q | E3: Sample | F3: Boom | G3: Boom
A4: Boomerang | B4: Tri Fly | C4: T
A5: Boomerang | B5: Sunshine | C5: S
A6: Boomerang | B6: Bellen | C6: B
A8: Pop = N | C8: Number
A9: Sample = n | C9: Number chosen
A11: All Combinations
A15: Randomly select 2 of 4 boomerangs to test (order DOES matter):
A17: Boomerang | B17: Quad | C17: Q | E17: Sample | F17: Boom | G17: Boom
A18: Boomerang | B18: Tri Fly | C18: T
A19: Boomerang | B19: Sunshine | C19: S
A20: Boomerang | B20: Bellen | C20: B
A22: Pop = N | B22: =COUNTA(B17:B20) -> 4 | C22: Number
A23: Sample = n | B23: 2 | C23: Number chosen
A25: All Combinations

Sheet C & P (an)
A1: Randomly select 2 of 4 boomerangs to test (order does not matter):
A3: Boomerang | B3: Quad | C3: Q | E3: Sample | F3: Boom | G3: Boom
A4: Boomerang | B4: Tri Fly | C4: T | E4: 1 | F4: Q | G4: T
A5: Boomerang | B5: Sunshine | C5: S | E5: 2 | F5: Q | G5: S
A6: Boomerang | B6: Bellen | C6: B | E6: 3 | F6: Q | G6: B
E7: 4 | F7: T | G7: S
A8: Pop = N | B8: =COUNTA(B3:B6) -> 4 | C8: Number | E8: 5 | F8: T | G8: B
A9: Sample = n | B9: 2 | C9: Number chosen | E9: 6 | F9: S | G9: B
A11: All Combinations | B11: =FACT(B8)/(FACT(B9)*FACT(B8-B9)) -> 6
B12: =COMBIN(B8,B9) -> 6
A15: Randomly select 2 of 4 boomerangs to test (order DOES matter):
A17: Boomerang | B17: Quad | C17: Q | E17: Sample | F17: Boom | G17: Boom
A18: Boomerang | B18: Tri Fly | C18: T | E18: 1 | F18: Q | G18: T
A19: Boomerang | B19: Sunshine | C19: S | E19: 2 | F19: Q | G19: S
A20: Boomerang | B20: Bellen | C20: B | E20: 3 | F20: Q | G20: B
E21: 4 | F21: T | G21: Q
A22: Pop = N | B22: =COUNTA(B17:B20) -> 4 | C22: Number | E22: 5 | F22: T | G22: S
A23: Sample = n | B23: 2 | C23: Number chosen | E23: 6 | F23: T | G23: B
E24: 7 | F24: S | G24: Q
A25: All Combinations | B25: =FACT(B22)/FACT(B22-B23) -> 12 | E25: 8 | F25: S | G25: T
B26: =PERMUT(B22,B23) -> 12 | E26: 9 | F26: S | G26: B
E27: 10 | F27: B | G27: Q
E28: 11 | F28: B | G28: T
E29: 12 | F29: B | G29: S

Sheet Adding
A1: Adding Law For Probability
A2: = P(A OR B) = P(A) + P(B) - P(A AND B)
A3: If events are mutually exclusive, then:
A4: = P(A OR B) = P(A) + P(B)
A5: Note: Add = OR = U = Union = +
A7: Example 1: Adding Laws For Probabilities: AND, OR and Complement
A9: Name | B9: Hair Color | C9: Eye Color | E9: AND Criteria (Intersection, or Joint, or Concurrent)
A10: Sioux | B10: Brown | C10: Hazel | E10: Hair Color | F10: Eye Color | G10: Count | H10: P(E)
A11: Chin | B11: Black | C11: Blue | E11: Brown | F11: Hazel
A12: Shelia | B12: Black | C12: Brown | G12: =IF(G11="",""," "&_xlfn.FORMULATEXT(G11)) -> 
A13: Gigi | B13: Brown | C13: Hazel | E13: OR Criteria (Union)
A14: Tyrone | B14: Black | C14: Brown | E14: Hair Color | F14: Count | G14: P(E)
A15: Lin | B15: Blond | C15: Brown | E15: Brown
A16: Ducky | B16: Brown | C16: Brown | E16: Blond | F16: You can never Double Count because Events are Mutually Exclusive
A17: Kip | B17: Brown | C17: Hazel | F17: =IF(F15="",""," "&_xlfn.FORMULATEXT(F15)) -> 
A18: Linda | B18: Blond | C18: Blue
A19: Jo | B19: Blond | C19: Green | E19: OR Criteria (Union) | J19: Wrong
E20: Hair Color | F20: Eye Color | G20: Count | H20: P(E) | J20: =COUNTIFS(B10:B19,E21)+COUNTIFS(C10:C19,F21) -> 7 | K20: Double Counts
A21: Count | B21: =COUNTA(B10:B19) -> 10 | E21: Brown | F21: Hazel | J21: Events are NOT Mutually Exclusive
G22: =IF(G21="",""," "&_xlfn.FORMULATEXT(G21)) -> 
E23: (Count of Brown Hair Color)+(Count of Hazel Eye Color)-(Count of Brown Hair Color AND Hazel Eye Color)
E25: Complement, P(AC) = 1-P(A)
E26: Hair Color | F26: P(E) | G26: Hair Color | H26: P(E)
E27: Brown | G27: NOT Brown | J27: =IF(H27="",""," "&_xlfn.FORMULATEXT(H27)) -> 
A31: Example 2: Adding from a Frequency Distribution
A33: Name | B33: Hair Color | C33: Eye Color | E33: Eye Color | F33: Frequency | G33: R. Frequency
A34: Sioux | B34: Brown | C34: Hazel | E34: Hazel | F34: =COUNTIFS($C$34:$C$43,E34) -> 3 | G34: =F34/$F$38 -> 0.3 | J34: <<== Each between 0 and 1, inclusive
A35: Chin | B35: Black | C35: Blue | E35: Blue | F35: =COUNTIFS($C$34:$C$43,E35) -> 2 | G35: =F35/$F$38 -> 0.2
A36: Shelia | B36: Black | C36: Brown | E36: Brown | F36: =COUNTIFS($C$34:$C$43,E36) -> 4 | G36: =F36/$F$38 -> 0.4
A37: Gigi | B37: Brown | C37: Hazel | E37: Green | F37: =COUNTIFS($C$34:$C$43,E37) -> 1 | G37: =F37/$F$38 -> 0.1
A38: Tyrone | B38: Black | C38: Brown | E38: Total | F38: =SUM(F34:F37) -> 10 | G38: =SUM(G34:G37) -> 1 | J38: SUM = 1
A39: Lin | B39: Blond | C39: Brown
A40: Ducky | B40: Brown | C40: Brown | E40: Hair Color | F40: Frequency | G40: R. Frequency
A41: Kip | B41: Brown | C41: Hazel | E41: Black | F41: =COUNTIFS($B$34:$B$43,E41) -> 3 | G41: =F41/$F$44 -> 0.3 | J41: <<== Each between 0 and 1, inclusive
A42: Linda | B42: Blond | C42: Blue | E42: Blond | F42: =COUNTIFS($B$34:$B$43,E42) -> 3 | G42: =F42/$F$44 -> 0.3
A43: Jo | B43: Blond | C43: Green | E43: Brown | F43: =COUNTIFS($B$34:$B$43,E43) -> 4 | G43: =F43/$F$44 -> 0.4
E44: Total | F44: =SUM(F41:F43) -> 10 | G44: =SUM(G41:G43) -> 1 | J44: SUM = 1
A45: OR Criteria (Union)
A46: Hair Color | B46: P(E)
A47: Brown
A48: Blond
A49: You can never Double Count because Events are Mutually Exclusive
E55: Example 3: Adding from a Cross Tabulated Table with "% of Grand Totals" Calculation
A57: Name | B57: Hair Color | C57: Eye Color | E57: AND Criteria (Intersection, or Joint, or Concurrent) | J57: Joint Probability Table
A58: Sioux | B58: Brown | C58: Hazel | E58: Hair Color | F58: Eye Color | G58: P(E) | H58: P(E)
A59: Chin | B59: Black | C59: Blue | E59: Brown | F59: Hazel | G59: ="P("&E59&" H. AND "&F59&" E.)" -> P(Brown H. AND Hazel E.) | L59: Hair Color | R59: "AND %" inside Cross Tab Table = "Joint" or "AND" or "Intersection" Probabilities
A60: Shelia | B60: Black | C60: Brown | L60: Black | M60: Blond | N60: Brown | O60: Total | R60: "Total %" = Marginal Probabilities
A61: Gigi | B61: Brown | C61: Hazel | E61: OR Criteria (Union) | J61: Eye Color | K61: Hazel | L61: =COUNTIFS($C$58:$C$67,$K61,$B$58:$B$67,L$60)/COUNTA($B$58:$B$67) -> 0 | M61: 0 | N61: 0.3 | O61: =SUM(L61:N61) -> 0.3
A62: Tyrone | B62: Black | C62: Brown | E62: Hair Color | F62: Hair Color | G62: P(E) | H62: P(E) | K62: Blue | L62: 0.1 | M62: 0.1 | N62: 0 | O62: =SUM(L62:N62) -> 0.2 | S62: <<== Each between 0 and 1, inclusive
A63: Lin | B63: Blond | C63: Brown | E63: Brown | F63: Blond | G63: P(Brown OR Blond) | K63: Brown | L63: 0.2 | M63: 0.1 | N63: 0.1 | O63: =SUM(L63:N63) -> 0.4
A64: Ducky | B64: Brown | C64: Brown | E64: Mutually Exclusive Categories | K64: Green | L64: 0 | M64: 0.1 | N64: 0 | O64: =SUM(L64:N64) -> 0.1
A65: Kip | B65: Brown | C65: Hazel | K65: Total | L65: =SUM(L61:L64) -> 0.3 | M65: =SUM(M61:M64) -> 0.3 | N65: =SUM(N61:N64) -> 0.4 | O65: =SUM(O61:O64) -> 1 | S65: SUM = 1
A66: Linda | B66: Blond | C66: Blue | E66: OR Criteria (Union)
A67: Jo | B67: Blond | C67: Green | E67: Hair Color | F67: Eye Color | G67: P(E) | H67: P(E)
E68: Brown | F68: Hazel | G68: ="P("&E68&" H. OR "&F68&" E.)" -> P(Brown H. OR Hazel E.)
E69: NOT Mutually Exclusive Categories, must subtract so you don't double count
A72: Example 4: Flight Arrival Information
A74: Arrival | B74: Frequency | C74: P(X)
A75: Early | B75: 100 | C75: =B75/$B$79 -> 0.1 | E75: <<== Each between 0 and 1, inclusive
A76: On Time | B76: 800 | C76: 0.8
A77: Late | B77: 75 | C77: 0.075
A78: Canceled | B78: 25 | C78: 0.025 | E78: SUM = 1
B79: =SUM(B75:B78) -> 1000 | C79: =SUM(C75:C78) -> 1
A81: P(Early OR On Time)
A82: P(Not Cancelled)
A86: Example 5: Travel survey of people who visit Seattle
A88: Visit Space Needle, P(SN) = | E88: 0.45
A89: Visit Pike's Place Market, P(PP)= | E89: 0.65
A90: Visit Both | E90: 0.25
A91: P(SN OR PP) = P(SN) + P(PP) - P(SN & PP)
A92: P(visit at least 1)

Sheet Adding (an)
A1: Adding Law For Probability
A2: = P(A OR B) = P(A) + P(B) - P(A AND B)
A3: If events are mutually exclusive, then:
A4: = P(A OR B) = P(A) + P(B)
A5: Note: Add = OR = U = Union = +
A7: Example 1: Adding Laws For Probabilities: AND, OR and Complement
A9: Name | B9: Hair Color | C9: Eye Color | E9: AND Criteria (Intersection, or Joint, or Concurrent)
A10: Sioux | B10: Brown | C10: Hazel | E10: Hair Color | F10: Eye Color | G10: Count | H10: P(E)
A11: Chin | B11: Black | C11: Blue | E11: Brown | F11: Hazel | G11: =COUNTIFS(B10:B19,E11,C10:C19,F11) -> 3 | H11: =G11/B21 -> 0.3
A12: Shelia | B12: Black | C12: Brown | G12: =IF(G11="",""," "&_xlfn.FORMULATEXT(G11)) -> =COUNTIFS(B10:B19,E11,C10:C19,F11)
A13: Gigi | B13: Brown | C13: Hazel | E13: OR Criteria (Union)
A14: Tyrone | B14: Black | C14: Brown | E14: Hair Color | F14: Count | G14: P(E)
A15: Lin | B15: Blond | C15: Brown | E15: Brown | F15: =COUNTIFS(B10:B19,E15)+COUNTIFS(B10:B19,E16) -> 7 | G15: =F15/B21 -> 0.7
A16: Ducky | B16: Brown | C16: Brown | E16: Blond | F16: You can never Double Count because Events are Mutually Exclusive
A17: Kip | B17: Brown | C17: Hazel | F17: =IF(F15="",""," "&_xlfn.FORMULATEXT(F15)) -> =COUNTIFS(B10:B19,E15)+COUNTIFS(B10:B19,E16)
A18: Linda | B18: Blond | C18: Blue
A19: Jo | B19: Blond | C19: Green | E19: OR Criteria (Union) | J19: Wrong
E20: Hair Color | F20: Eye Color | G20: Count | H20: P(E) | J20: =COUNTIFS(B10:B19,E21)+COUNTIFS(C10:C19,F21) -> 7 | K20: Double Counts
A21: Count | B21: =COUNTA(B10:B19) -> 10 | E21: Brown | F21: Hazel | G21: =COUNTIFS(B10:B19,E21)+COUNTIFS(C10:C19,F21)-COUNTIFS(B10:B19,E21,C10:C19,F21) -> 4 | H21: =G21/B21 -> 0.4 | J21: Events are NOT Mutually Exclusive
G22: =IF(G21="",""," "&_xlfn.FORMULATEXT(G21)) -> =COUNTIFS(B10:B19,E21)+COUNTIFS(C10:C19,F21)-COUNTIFS(B10:B19,E21,C10:C19,F21)
E23: (Count of Brown Hair Color)+(Count of Hazel Eye Color)-(Count of Brown Hair Color AND Hazel Eye Color)
E25: Complement, P(AC) = 1-P(A)
E26: Hair Color | F26: P(E) | G26: Hair Color | H26: P(E)
E27: Brown | F27: =COUNTIFS(B10:B19,E27)/B21 -> 0.4 | G27: NOT Brown | H27: =1-F27 -> 0.6 | J27: =IF(H27="",""," "&_xlfn.FORMULATEXT(H27)) -> =1-F27
A31: Example 2: Adding from a Frequency Distribution
A33: Name | B33: Hair Color | C33: Eye Color | E33: Eye Color | F33: Frequency | G33: R. Frequency
A34: Sioux | B34: Brown | C34: Hazel | E34: Hazel | F34: =COUNTIFS($C$34:$C$43,E34) -> 3 | G34: =F34/$F$38 -> 0.3 | J34: <<== Each between 0 and 1, inclusive
A35: Chin | B35: Black | C35: Blue | E35: Blue | F35: =COUNTIFS($C$34:$C$43,E35) -> 2 | G35: =F35/$F$38 -> 0.2
A36: Shelia | B36: Black | C36: Brown | E36: Brown | F36: =COUNTIFS($C$34:$C$43,E36) -> 4 | G36: =F36/$F$38 -> 0.4
A37: Gigi | B37: Brown | C37: Hazel | E37: Green | F37: =COUNTIFS($C$34:$C$43,E37) -> 1 | G37: =F37/$F$38 -> 0.1
A38: Tyrone | B38: Black | C38: Brown | E38: Total | F38: =SUM(F34:F37) -> 10 | G38: =SUM(G34:G37) -> 1 | J38: SUM = 1
A39: Lin | B39: Blond | C39: Brown
A40: Ducky | B40: Brown | C40: Brown | E40: Hair Color | F40: Frequency | G40: R. Frequency
A41: Kip | B41: Brown | C41: Hazel | E41: Black | F41: =COUNTIFS($B$34:$B$43,E41) -> 3 | G41: =F41/$F$44 -> 0.3 | J41: <<== Each between 0 and 1, inclusive
A42: Linda | B42: Blond | C42: Blue | E42: Blond | F42: =COUNTIFS($B$34:$B$43,E42) -> 3 | G42: =F42/$F$44 -> 0.3
A43: Jo | B43: Blond | C43: Green | E43: Brown | F43: =COUNTIFS($B$34:$B$43,E43) -> 4 | G43: =F43/$F$44 -> 0.4
E44: Total | F44: =SUM(F41:F43) -> 10 | G44: =SUM(G41:G43) -> 1 | J44: SUM = 1
A45: OR Criteria (Union)
A46: Hair Color | B46: P(E)
A47: Brown
A48: Blond
A49: You can never Double Count because Events are Mutually Exclusive
E55: Example 3: Adding from a Cross Tabulated Table with "% of Grand Totals" Calculation
A57: Name | B57: Hair Color | C57: Eye Color | E57: AND Criteria (Intersection, or Joint, or Concurrent) | J57: Joint Probability Table
A58: Sioux | B58: Brown | C58: Hazel | E58: Hair Color | F58: Eye Color | G58: P(E) | H58: P(E)
A59: Chin | B59: Black | C59: Blue | E59: Brown | F59: Hazel | G59: ="P("&E59&" H. AND "&F59&" E.)" -> P(Brown H. AND Hazel E.) | H59: =N61 -> 0.3 | L59: Hair Color | R59: "AND %" inside Cross Tab Table = "Joint" or "AND" or "Intersection" Probabilities
A60: Shelia | B60: Black | C60: Brown | L60: Black | M60: Blond | N60: Brown | O60: Total | R60: "Total %" = Marginal Probabilities
A61: Gigi | B61: Brown | C61: Hazel | E61: OR Criteria (Union) | J61: Eye Color | K61: Hazel | L61: =COUNTIFS($C$58:$C$67,$K61,$B$58:$B$67,L$60)/COUNTA($B$58:$B$67) -> 0 | M61: 0 | N61: 0.3 | O61: =SUM(L61:N61) -> 0.3
A62: Tyrone | B62: Black | C62: Brown | E62: Hair Color | F62: Hair Color | G62: P(E) | H62: P(E) | K62: Blue | L62: 0.1 | M62: 0.1 | N62: 0 | O62: =SUM(L62:N62) -> 0.2 | S62: <<== Each between 0 and 1, inclusive
A63: Lin | B63: Blond | C63: Brown | E63: Brown | F63: Blond | G63: P(Brown OR Blond) | H63: =N65+M65 -> 0.7 | K63: Brown | L63: 0.2 | M63: 0.1 | N63: 0.1 | O63: =SUM(L63:N63) -> 0.4
A64: Ducky | B64: Brown | C64: Brown | E64: Mutually Exclusive Categories | K64: Green | L64: 0 | M64: 0.1 | N64: 0 | O64: =SUM(L64:N64) -> 0.1
A65: Kip | B65: Brown | C65: Hazel | K65: Total | L65: =SUM(L61:L64) -> 0.3 | M65: =SUM(M61:M64) -> 0.3 | N65: =SUM(N61:N64) -> 0.4 | O65: =SUM(O61:O64) -> 1 | S65: SUM = 1
A66: Linda | B66: Blond | C66: Blue | E66: OR Criteria (Union)
A67: Jo | B67: Blond | C67: Green | E67: Hair Color | F67: Eye Color | G67: P(E) | H67: P(E)
E68: Brown | F68: Hazel | G68: ="P("&E68&" H. OR "&F68&" E.)" -> P(Brown H. OR Hazel E.) | H68: =N65+O61-N61 -> 0.4
E69: NOT Mutually Exclusive Categories, must subtract so you don't double count
A72: Example 4: Flight Arrival Information
A74: Arrival | B74: Frequency | C74: P(X)
A75: Early | B75: 100 | C75: =B75/$B$79 -> 0.1 | E75: <<== Each between 0 and 1, inclusive
A76: On Time | B76: 800 | C76: 0.8
A77: Late | B77: 75 | C77: 0.075
A78: Canceled | B78: 25 | C78: 0.025 | E78: SUM = 1
B79: =SUM(B75:B78) -> 1000 | C79: =SUM(C75:C78) -> 1
A81: P(Early OR On Time) | C81: =C75+C76 -> 0.9
A82: P(Not Cancelled) | C82: =1-C78 -> 0.975
A86: Example 5: Travel survey of people who visit Seattle
A88: Visit Space Needle, P(SN) = | E88: 0.45
A89: Visit Pike's Place Market, P(PP)= | E89: 0.65
A90: Visit Both | E90: 0.25
A91: P(SN OR PP) = P(SN) + P(PP) - P(SN & PP) | E91: =E88+E89-E90 -> 0.85
A92: P(visit at least 1)

Sheet CP
A1: Conditional Probability = P(A | B)
A2: "Probability of A, given that B has occurred" or "If B occurred, what is probability of A"
A3: After the first event has occurred, the Sample Space has changed.
A5: Example 1: Pull Queens from deck:
A7: Cards in Deck (Population) | D7: 52
A8: Queens in deck (total # successes) | D8: 4
A9: # of cards to pull (Sample Size) = | D9: 1
A10: # of Queens (# of successes) = | D10: 1
A11: P(Pull 1 Queen w/out Replacement) = | E11: =D8&"/"&D7&" = "&TEXT(D8/D7,"?/??") -> 4/52 = 1/13
A12: How total many Cards Left? | D12: 51
A13: How Queens Left? | D13: 3
A14: P(Q2 | Q1) | E14: =D13&"/"&D12&" = "&TEXT(D13/D12,"?/??") -> 3/51 = 1/17 | F14: Sample Space has changed
A15: How total many Cards Left? | D15: 50
A16: How Queens Left? | D16: 2
A17: P(Q3 | Q2 | Q1) | E17: =D16&"/"&D15&" = "&TEXT(D16/D15,"?/??") -> 2/50 = 1/25 | F17: Sample Space has changed
A22: Example 2: Cross Tabulated Tables
A24: Random Sample of 200 Purchases at Convenience Store
C25: Amount
C26: ="$"&A$95&" up to $"&A$96 -> $0 up to $25 | D26: ="$"&B$95&" up to $"&B$96 -> $25 up to $50 | E26: ="$"&C$95&" up to $"&C$96 -> $50 up to $75 | F26: =">= &"&D95 -> >= &75 | G26: Total
A27: Payment Method | B27: Cash | C27: =COUNTIFS($A$99:$A$298,$B27,$B$99:$B$298,">="&A$95,$B$99:$B$298,"<"&A$96) -> 21 | D27: 11 | E27: 9 | F27: 3 | G27: =SUM(C27:F27) -> 44
B28: Debit | C28: 20 | D28: 15 | E28: 14 | F28: 8 | G28: 57
B29: Credit | C29: 16 | D29: 28 | E29: 27 | F29: 15 | G29: 86
B30: Check | C30: 6 | D30: 3 | E30: 2 | F30: 2 | G30: 13
B31: Total | C31: =SUM(C27:C30) -> 63 | D31: 57 | E31: 52 | F31: 28 | G31: 200
B33: P(Cash)
B34: P(Cash AND >=75)
B35: P(Cash | 0-25) | F35: Sample Space has changed
A38: Example 3: Cross Tabulated Table with % of Grand Totals. This is called a Joint Probability Table.
C40: Amount
C41: =C$26 -> $0 up to $25 | D41: =D$26 -> $25 up to $50 | E41: =E$26 -> $50 up to $75 | F41: =F$26 -> >= &75 | G41: Total | I41: "AND %" inside Cross Tab Table = "Joint" or "AND" Probabilities
A42: Payment Method | B42: Cash | C42: =C27/$G$31 -> 0.105 | D42: 0.055 | E42: 0.045 | F42: 0.015 | G42: 0.22 | I42: "Total %" = Marginal Probabilities
B43: Debit | C43: 0.1 | D43: 0.075 | E43: 0.07 | F43: 0.04 | G43: 0.285
B44: Credit | C44: 0.08 | D44: 0.14 | E44: 0.135 | F44: 0.075 | G44: 0.43
B45: Check | C45: 0.03 | D45: 0.015 | E45: 0.01 | F45: 0.01 | G45: 0.065
B46: Total | C46: 0.315 | D46: 0.285 | E46: 0.26 | F46: 0.14 | G46: 1
B48: P(Cash)
B49: P(Cash AND >=75)
B50: P(Cash | 0-25) | F50: Sample Space has changed | I50: Conditional Prob. = AND Prob./Marginal Prob.
A52: Example 3: Cross Tabulated Table with % of Row Totals: Conditional Probabilities are on inside of table.
C54: Amount
C55: =C$26 -> $0 up to $25 | D55: =D$26 -> $25 up to $50 | E55: =E$26 -> $50 up to $75 | F55: =F$26 -> >= &75 | G55: Total
A56: Payment Method | B56: Cash | C56: =C27/C$31 -> 0.3333333333 | D56: 0.1929824561 | E56: 0.1730769231 | F56: 0.1071428571 | G56: 0.22
B57: Debit | C57: 0.3174603175 | D57: 0.2631578947 | E57: 0.2692307692 | F57: 0.2857142857 | G57: 0.285
B58: Credit | C58: 0.253968254 | D58: 0.4912280702 | E58: 0.5192307692 | F58: 0.5357142857 | G58: 0.43
B59: Check | C59: 0.09523809524 | D59: 0.05263157895 | E59: 0.03846153846 | F59: 0.07142857143 | G59: 0.065
B60: Total | C60: 1 | D60: 1 | E60: 1 | F60: 1 | G60: 1
C91: Max Purchase
C92: =MAX(B99:B298) -> 99.82
A95: 0 | B95: =A95+25 -> 25 | C95: =B95+25 -> 50 | D95: 75
A96: 25 | B96: =A96+25 -> 50 | C96: 75 | D96: 100
A98: Payment Method | B98: Amount of Purchase
A99: Debit | B99: 52.35
A100: Credit | B100: 75.28
A101: Credit | B101: 28.88
A102: Debit | B102: 58.67
A103: Credit | B103: 20.26
A104: Cash | B104: 26.17
A105: Cash | B105: 10.72
A106: Cash | B106: 50.19
A107: Debit | B107: 43.21
A108: Credit | B108: 27.66
A109: Credit | B109: 77.78
A110: Cash | B110: 55.21
A111: Credit | B111: 19.57
A112: Cash | B112: 6.23
A113: Cash | B113: 38.03
A114: Debit | B114: 44.51
A115: Debit | B115: 43.73
A116: Credit | B116: 56.67
A117: Debit | B117: 12.89
A118: Credit | B118: 88.43
A119: Debit | B119: 11.44
A120: Debit | B120: 46.6
A121: Cash | B121: 19.32
A122: Cash | B122: 35.33
A123: Debit | B123: 76.4
A124: Debit | B124: 35
A125: Check | B125: 90.53
A126: Credit | B126: 31.4
A127: Debit | B127: 3.14
A128: Credit | B128: 5.75
A129: Check | B129: 99.82
A130: Credit | B130: 24.51
A131: Cash | B131: 13.22
A132: Cash | B132: 4.62
A133: Debit | B133: 61.39
A134: Credit | B134: 64.09
A135: Cash | B135: 9.32
A136: Cash | B136: 22.13
A137: Debit | B137: 33.28
A138: Credit | B138: 34.34
A139: Cash | B139: 69.98
A140: Credit | B140: 71.05
A141: Cash | B141: 18.57
A142: Credit | B142: 40.62
A143: Cash | B143: 38.01
A144: Credit | B144: 50.28
A145: Credit | B145: 51.26
A146: Credit | B146: 85.25
A147: Credit | B147: 36.53
A148: Credit | B148: 42.2
A149: Credit | B149: 36.27
A150: Credit | B150: 23.59
A151: Credit | B151: 53.96
A152: Debit | B152: 21.55
A153: Credit | B153: 22.28
A154: Debit | B154: 11.75
A155: Cash | B155: 8.47
A156: Credit | B156: 62.42
A157: Credit | B157: 51.39
A158: Cash | B158: 32.49
A159: Debit | B159: 92.25
A160: Credit | B160: 28.39
A161: Credit | B161: 43.83
A162: Credit | B162: 55.66
A163: Debit | B163: 92.62
A164: Credit | B164: 43.42
A165: Debit | B165: 2.23
A166: Credit | B166: 38.6
A167: Debit | B167: 57.49
A168: Credit | B168: 46.47
A169: Credit | B169: 3.49
A170: Debit | B170: 2.39
A171: Credit | B171: 79.32
A172: Credit | B172: 51.93
A173: Credit | B173: 52.72
A174: Credit | B174: 17.95
A175: Credit | B175: 15.46
A176: Credit | B176: 91.55
A177: Cash | B177: 68.92
A178: Debit | B178: 71.23
A179: Check | B179: 18.96
A180: Cash | B180: 65.64
A181: Credit | B181: 76.75
A182: Debit | B182: 56.25
A183: Debit | B183: 71.36
A184: Credit | B184: 43.71
A185: Cash | B185: 86.1
A186: Check | B186: 51.21
A187: Credit | B187: 43.86
A188: Credit | B188: 91.24
A189: Credit | B189: 72.48
A190: Credit | B190: 50.22
A191: Debit | B191: 61.77
A192: Credit | B192: 76
A193: Credit | B193: 85.49
A194: Credit | B194: 39.57
A195: Cash | B195: 60.66
A196: Credit | B196: 60.49
A197: Cash | B197: 56.1
A198: Cash | B198: 67.4
A199: Check | B199: 61.14
A200: Credit | B200: 16.19
A201: Credit | B201: 75.98
A202: Debit | B202: 82.76
A203: Check | B203: 14.47
A204: Debit | B204: 44.89
A205: Credit | B205: 94.6
A206: Cash | B206: 47
A207: Debit | B207: 18.17
A208: Cash | B208: 11.54
A209: Credit | B209: 83.44
A210: Debit | B210: 19.72
A211: Debit | B211: 14.33
A212: Debit | B212: 59.56
A213: Cash | B213: 13.43
A214: Check | B214: 14.92
A215: Cash | B215: 94.02
A216: Debit | B216: 49.3
A217: Cash | B217: 46.75
A218: Debit | B218: 6.27
A219: Debit | B219: 61.89
A220: Credit | B220: 35.49
A221: Credit | B221: 73
A222: Cash | B222: 27.44
A223: Credit | B223: 48.87
A224: Credit | B224: 71.36
A225: Credit | B225: 25.59
A226: Debit | B226: 21.36
A227: Credit | B227: 6.17
A228: Credit | B228: 38.24
A229: Debit | B229: 37.39
A230: Credit | B230: 58.85
A231: Credit | B231: 80.57
A232: Credit | B232: 55.83
A233: Cash | B233: 17.72
A234: Credit | B234: 69.58
A235: Debit | B235: 72.13
A236: Credit | B236: 6.97
A237: Credit | B237: 59.5
A238: Check | B238: 3.06
A239: Cash | B239: 14.61
A240: Check | B240: 49.04
A241: Debit | B241: 77.05
A242: Cash | B242: 27.18
A243: Credit | B243: 57.28
A244: Check | B244: 36.11
A245: Debit | B245: 22.18
A246: Credit | B246: 18.29
A247: Credit | B247: 3.83
... 51 more rows

Sheet CP (an)
A1: Conditional Probability = P(A | B)
A2: "Probability of A, given that B has occurred" or "If B occurred, what is probability of A"
A3: After the first event has occurred, the Sample Space has changed.
A5: Example 1: Pull Queens from deck:
A7: Cards in Deck (Population) | D7: 52
A8: Queens in deck (total # successes) | D8: 4
A9: # of cards to pull (Sample Size) = | D9: 1
A10: # of Queens (# of successes) = | D10: 1
A11: P(Pull 1 Queen w/out Replacement) = | D11: =4/52 -> 0.07692307692 | E11: =D8&"/"&D7&" = "&TEXT(D8/D7,"?/??") -> 4/52 = 1/13
A12: How total many Cards Left? | D12: 51
A13: How Queens Left? | D13: 3
A14: P(Q2 | Q1) | D14: =D13/D12 -> 0.05882352941 | E14: =D13&"/"&D12&" = "&TEXT(D13/D12,"?/??") -> 3/51 = 1/17 | F14: Sample Space has changed
A15: How total many Cards Left? | D15: 50
A16: How Queens Left? | D16: 2
A17: P(Q3 | Q2 | Q1) | D17: =D16/D15 -> 0.04 | E17: =D16&"/"&D15&" = "&TEXT(D16/D15,"?/??") -> 2/50 = 1/25 | F17: Sample Space has changed
A22: Example 2: Cross Tabulated Tables
A24: Random Sample of 200 Purchases at Convenience Store
C25: Amount
C26: ="$"&A$95&" up to $"&A$96 -> $0 up to $25 | D26: ="$"&B$95&" up to $"&B$96 -> $25 up to $50 | E26: ="$"&C$95&" up to $"&C$96 -> $50 up to $75 | F26: =">= &"&D95 -> >= &75 | G26: Total
A27: Payment Method | B27: Cash | C27: =COUNTIFS($A$99:$A$298,$B27,$B$99:$B$298,">="&A$95,$B$99:$B$298,"<"&A$96) -> 21 | D27: 11 | E27: 9 | F27: 3 | G27: =SUM(C27:F27) -> 44
B28: Debit | C28: 20 | D28: 15 | E28: 14 | F28: 8 | G28: 57
B29: Credit | C29: 16 | D29: 28 | E29: 27 | F29: 15 | G29: 86
B30: Check | C30: 6 | D30: 3 | E30: 2 | F30: 2 | G30: 13
B31: Total | C31: =SUM(C27:C30) -> 63 | D31: 57 | E31: 52 | F31: 28 | G31: 200
B33: P(Cash) | D33: =G27/G31 -> 0.22
B34: P(Cash AND >=75) | D34: =F27/G31 -> 0.015
B35: P(Cash | 0-25) | D35: =C27/C31 -> 0.3333333333 | F35: Sample Space has changed
A38: Example 3: Cross Tabulated Table with % of Grand Totals. This is called a Joint Probability Table.
C40: Amount
C41: =C$26 -> $0 up to $25 | D41: =D$26 -> $25 up to $50 | E41: =E$26 -> $50 up to $75 | F41: =F$26 -> >= &75 | G41: Total | I41: "AND %" inside Cross Tab Table = "Joint" or "AND" Probabilities
A42: Payment Method | B42: Cash | C42: =C27/$G$31 -> 0.105 | D42: 0.055 | E42: 0.045 | F42: 0.015 | G42: 0.22 | I42: "Total %" = Marginal Probabilities
B43: Debit | C43: 0.1 | D43: 0.075 | E43: 0.07 | F43: 0.04 | G43: 0.285
B44: Credit | C44: 0.08 | D44: 0.14 | E44: 0.135 | F44: 0.075 | G44: 0.43
B45: Check | C45: 0.03 | D45: 0.015 | E45: 0.01 | F45: 0.01 | G45: 0.065
B46: Total | C46: 0.315 | D46: 0.285 | E46: 0.26 | F46: 0.14 | G46: 1
B48: P(Cash) | D48: =G42 -> 0.22
B49: P(Cash AND >=75) | D49: =F42 -> 0.015
B50: P(Cash | 0-25) | D50: =C42/C46 -> 0.3333333333 | F50: Sample Space has changed | I50: Conditional Prob. = AND Prob./Marginal Prob.
A52: Example 3: Cross Tabulated Table with % of Row Totals: Conditional Probabilities are on inside of table.
C54: Amount
C55: =C$26 -> $0 up to $25 | D55: =D$26 -> $25 up to $50 | E55: =E$26 -> $50 up to $75 | F55: =F$26 -> >= &75 | G55: Total
A56: Payment Method | B56: Cash | C56: =C27/C$31 -> 0.3333333333 | D56: 0.1929824561 | E56: 0.1730769231 | F56: 0.1071428571 | G56: 0.22
B57: Debit | C57: 0.3174603175 | D57: 0.2631578947 | E57: 0.2692307692 | F57: 0.2857142857 | G57: 0.285
B58: Credit | C58: 0.253968254 | D58: 0.4912280702 | E58: 0.5192307692 | F58: 0.5357142857 | G58: 0.43
B59: Check | C59: 0.09523809524 | D59: 0.05263157895 | E59: 0.03846153846 | F59: 0.07142857143 | G59: 0.065
B60: Total | C60: 1 | D60: 1 | E60: 1 | F60: 1 | G60: 1
C91: Max Purchase
C92: =MAX(B99:B298) -> 99.82
A95: 0 | B95: =A95+25 -> 25 | C95: =B95+25 -> 50 | D95: 75
A96: 25 | B96: =A96+25 -> 50 | C96: 75 | D96: 100
A98: Payment Method | B98: Amount of Purchase
A99: Debit | B99: 52.35
A100: Credit | B100: 75.28
A101: Credit | B101: 28.88
A102: Debit | B102: 58.67
A103: Credit | B103: 20.26
A104: Cash | B104: 26.17
A105: Cash | B105: 10.72
A106: Cash | B106: 50.19
A107: Debit | B107: 43.21
A108: Credit | B108: 27.66
A109: Credit | B109: 77.78
A110: Cash | B110: 55.21
A111: Credit | B111: 19.57
A112: Cash | B112: 6.23
A113: Cash | B113: 38.03
A114: Debit | B114: 44.51
A115: Debit | B115: 43.73
A116: Credit | B116: 56.67
A117: Debit | B117: 12.89
A118: Credit | B118: 88.43
A119: Debit | B119: 11.44
A120: Debit | B120: 46.6
A121: Cash | B121: 19.32
A122: Cash | B122: 35.33
A123: Debit | B123: 76.4
A124: Debit | B124: 35
A125: Check | B125: 90.53
A126: Credit | B126: 31.4
A127: Debit | B127: 3.14
A128: Credit | B128: 5.75
A129: Check | B129: 99.82
A130: Credit | B130: 24.51
A131: Cash | B131: 13.22
A132: Cash | B132: 4.62
A133: Debit | B133: 61.39
A134: Credit | B134: 64.09
A135: Cash | B135: 9.32
A136: Cash | B136: 22.13
A137: Debit | B137: 33.28
A138: Credit | B138: 34.34
A139: Cash | B139: 69.98
A140: Credit | B140: 71.05
A141: Cash | B141: 18.57
A142: Credit | B142: 40.62
A143: Cash | B143: 38.01
A144: Credit | B144: 50.28
A145: Credit | B145: 51.26
A146: Credit | B146: 85.25
A147: Credit | B147: 36.53
A148: Credit | B148: 42.2
A149: Credit | B149: 36.27
A150: Credit | B150: 23.59
A151: Credit | B151: 53.96
A152: Debit | B152: 21.55
A153: Credit | B153: 22.28
A154: Debit | B154: 11.75
A155: Cash | B155: 8.47
A156: Credit | B156: 62.42
A157: Credit | B157: 51.39
A158: Cash | B158: 32.49
A159: Debit | B159: 92.25
A160: Credit | B160: 28.39
A161: Credit | B161: 43.83
A162: Credit | B162: 55.66
A163: Debit | B163: 92.62
A164: Credit | B164: 43.42
A165: Debit | B165: 2.23
A166: Credit | B166: 38.6
A167: Debit | B167: 57.49
A168: Credit | B168: 46.47
A169: Credit | B169: 3.49
A170: Debit | B170: 2.39
A171: Credit | B171: 79.32
A172: Credit | B172: 51.93
A173: Credit | B173: 52.72
A174: Credit | B174: 17.95
A175: Credit | B175: 15.46
A176: Credit | B176: 91.55
A177: Cash | B177: 68.92
A178: Debit | B178: 71.23
A179: Check | B179: 18.96
A180: Cash | B180: 65.64
A181: Credit | B181: 76.75
A182: Debit | B182: 56.25
A183: Debit | B183: 71.36
A184: Credit | B184: 43.71
A185: Cash | B185: 86.1
A186: Check | B186: 51.21
A187: Credit | B187: 43.86
A188: Credit | B188: 91.24
A189: Credit | B189: 72.48
A190: Credit | B190: 50.22
A191: Debit | B191: 61.77
A192: Credit | B192: 76
A193: Credit | B193: 85.49
A194: Credit | B194: 39.57
A195: Cash | B195: 60.66
A196: Credit | B196: 60.49
A197: Cash | B197: 56.1
A198: Cash | B198: 67.4
A199: Check | B199: 61.14
A200: Credit | B200: 16.19
A201: Credit | B201: 75.98
A202: Debit | B202: 82.76
A203: Check | B203: 14.47
A204: Debit | B204: 44.89
A205: Credit | B205: 94.6
A206: Cash | B206: 47
A207: Debit | B207: 18.17
A208: Cash | B208: 11.54
A209: Credit | B209: 83.44
A210: Debit | B210: 19.72
A211: Debit | B211: 14.33
A212: Debit | B212: 59.56
A213: Cash | B213: 13.43
A214: Check | B214: 14.92
A215: Cash | B215: 94.02
A216: Debit | B216: 49.3
A217: Cash | B217: 46.75
A218: Debit | B218: 6.27
A219: Debit | B219: 61.89
A220: Credit | B220: 35.49
A221: Credit | B221: 73
A222: Cash | B222: 27.44
A223: Credit | B223: 48.87
A224: Credit | B224: 71.36
A225: Credit | B225: 25.59
A226: Debit | B226: 21.36
A227: Credit | B227: 6.17
A228: Credit | B228: 38.24
A229: Debit | B229: 37.39
A230: Credit | B230: 58.85
A231: Credit | B231: 80.57
A232: Credit | B232: 55.83
A233: Cash | B233: 17.72
A234: Credit | B234: 69.58
A235: Debit | B235: 72.13
A236: Credit | B236: 6.97
A237: Credit | B237: 59.5
A238: Check | B238: 3.06
A239: Cash | B239: 14.61
A240: Check | B240: 49.04
A241: Debit | B241: 77.05
A242: Cash | B242: 27.18
A243: Credit | B243: 57.28
A244: Check | B244: 36.11
A245: Debit | B245: 22.18
A246: Credit | B246: 18.29
A247: Credit | B247: 3.83
... 51 more rows

Sheet Multiply
A1: Independent Events
A2: P(A | B) = P(A), B has no affect on A or P(B | A) = P(B), A has no affect on B
A4: Multiplication Law for Probability
A5: P(A AND B) = P(B) * P(A | B)
A6: or
A7: P(A AND B) = P(A) * P(B | A)
A8: If events are independent, then:
A9: P(A AND B) = P(A) * P(B)
A10: We can also solve for Conditional Probability:
A11: P(A | B) = P(A AND B)/P(B) or P(B | A) = P(A AND B)/P(A)
A13: Note: Multiply = AND = ∩ = Intersection = *
A15: Example 1: Probability of Pulling 3 Straight Queens?
A17: Cards in Deck (Population) | D17: 52
A18: Queens in deck (total # successes) | D18: 4
A19: # of cards to pull (Sample Size) = | D19: 1
A20: # of Queens (# of successes) = | D20: 1
A21: P(Pull 1 Queen w/out Replacement) = | D21: =D18/D17 -> 0.07692307692 | E21: =D18&"/"&D17&" = "&TEXT(D18/D17,"?/??") -> 4/52 = 1/13
A22: How total many Cards Left? | D22: 51
A23: How Queens Left? | D23: 3
A24: P(Q2 | Q1) | D24: =D23/D22 -> 0.05882352941 | E24: =D23&"/"&D22&" = "&TEXT(D23/D22,"?/??") -> 3/51 = 1/17 | F24: Sample Space has changed
A25: How total many Cards Left? | D25: 50
A26: How Queens Left? | D26: 2
A27: P(Q3 | Q2 | Q1) | D27: =D26/D25 -> 0.04 | E27: =D26&"/"&D25&" = "&TEXT(D26/D25,"?/??") -> 2/50 = 1/25 | F27: Sample Space has changed
A29: Events are NOT Independent, so: P(A AND B) = P(A) * P(B | A)
A30: P(Pull 2 Straight Queens) | E30: (Q,Q) | F30: P(Q1 AND Q2) = P(Q1)*P(Q2 | Q1)
A31: P(Pull 3 Straight Queens) | E31: (Q,Q,Q) | F31: P(Q1 AND Q2 AND Q3) = P(Q1)*P(Q2 | Q1)*P(Q3 | Q2 | Q1) | M31: =_xlfn.HYPGEOM.DIST(D48,D47,D46,D45,0) -> 0.01303167421 | O31: HYPGEOM.DIST function
A33: For this example, there is only one sample point.
A35: Example 2: Probability of Pulling Q, then Not Q, then Q?
A37: Events are NOT Independent, so: P(A AND B AND C) = P(A) * P(B | A) * P(C | B | A)
A38: Step 1 | B38: Step 2 | C38: Step 3 | D38: P(SP)
A39: Q | B39: NQ | C39: Q | G39: P(Single Sample Point: Q1, NQ, Q2) = P(Q1)*P(NQ | Q1)*P(Q2 | NQ | Q1)
A41: For this example, there is only one sample point.
A43: Example 3: Probability of Pulling 2 Queens in 3 tries?
A45: Cards in Deck (population size) | D45: 52 | F45: Cards in Deck (Population) | I45: 52
A46: Queens in deck (total # successes in pop.) | D46: 4 | F46: Queens in deck (total # successes) | I46: 4
A47: # of cards to pull (Sample Size) = | D47: 3 | F47: # of cards to pull (Sample Size) = | I47: 3
A48: # of Queens (# of successes) = | D48: 2 | F48: # of Queens (# of successes) = | I48: 2
A49: P(Pull 2 Queens in 3 tries) | F49: P(Pull 2 Queens in 3 tries)
A51: More than one Sample Point. It comes down to add the probabilities for the sample points… | I51: HYPGEOM.DIST function
A52: Events are NOT Independent | I52: sample_s = Number of Successes in Sample
A53: Step 1 | B53: Step 2 | C53: Step 3 | D53: P(SP) | I53: number_sample = Sample Size
A54: Q | B54: Q | C54: NQ | I54: population_s = Number Successes in Pop.
A55: Q | B55: NQ | C55: Q | I55: number_pop = Population Size
A56: NQ | B56: Q | C56: Q | I56: cumulative = 0 for individual probability, 1 if you want to add from low to high (chapter 5).
A59: Example 3: Probability Google stock and Whole Foods stock with both go up next year
A61: Probability Google Stock Goes Up | D61: 0.35
A62: Probability Whole Foods Goes Up | D62: 0.2
A64: Events are assumed to be Independent, so: P(G AND W) = P(G) * P(W)
A65: P(Google up AND Whole Food up)
A68: Example 4: Probability 3 straight products off assembly line are defective (any one try = 0.02)?
A70: Probability Defect on any 1 try | D70: 0.02
A72: Events are assumed to be Independent, so: P(A AND B AND C) = P(A) * P(B) * P(C)
A73: P(3 Straight Defects Off Assembly Line)
A76: Example 5: Probability 2 out of 3 products off assembly line are defective (any one try = 0.02)?
A78: Success = Defect | D78: D | E78: Defect
A79: Number Successes | D79: 2 | F79: Number Successes | I79: 2
A80: Total Steps/Trials | D80: 3 | F80: Total Steps/Trials | I80: 3
A81: Probability of Success = P(Defect) | D81: 0.02 | F81: Probability of Success = P(Defect) | I81: 0.02
A82: Probability Not Defect | F82: P(2 Defects in 3 Tries)
A83: P(2 Defects in 3 Tries)
I84: BINOM.DIST function
A85: More than one Sample Point. It comes down to add the probabilities for the sample points… | I85: number_s = Number of Successes
A86: Events are Independent | I86: trials = Total Steps/Trials
A87: Step 1 | B87: Step 2 | C87: Step 3 | D87: P(SP) | I87: probability_s = Probability of Success
A88: D | B88: D | C88: ND | I88: cumulative = 0 for individual probability, 1 if you want to add from low to high (chapter 5).
A89: D | B89: ND | C89: D
A90: ND | B90: D | C90: D
A93: Example 6: Travel survey of people who visit Seattle
A95: Visit Space Needle, P(SN) = | E95: 0.45
A96: Visit Pike's Place Market, P(PP)= | E96: 0.65
A97: Visit Both | E97: 0.25
A99: Events are NOT Independent
A100: Solve for Conditional: P(A | B) = P(A AND B)/P(B)
A101: P(Visit Space Needle | Pike's Place) = P(SN | PP) | G101: P(SN | PP) = P(SN AND PP)/P(PP)
A103: P(PP | SN) | G103: P(PP | SN) = P(SN AND PP)/P(SN)

Sheet Venn (hidden)
A1: Name | B1: Hair Color | C1: Eye Color | E1: Hair Color | F1: Frequency | G1: Relative Frequency | L1: Frequency | M1: Eye Color
A2: Sioux | B2: Brown | C2: Hazel | E2: Brown | F2: =COUNTIFS($B$2:$B$11,E2) -> 4 | G2: =F2/$F$5 -> 0.4 | L2: Hair Color | M2: Blue | N2: Brown | O2: Green | P2: Hazel | Q2: Grand Total
A3: Chin | B3: Black | C3: Blue | E3: Black | F3: =COUNTIFS($B$2:$B$11,E3) -> 3 | G3: 0.3 | L3: Black | M3: 1 | N3: 2 | Q3: 3
A4: Shelia | B4: Black | C4: Brown | E4: Blond | F4: 3 | G4: 0.3 | L4: Blond | M4: 1 | N4: 1 | O4: 1 | Q4: 3
A5: Gigi | B5: Brown | C5: Hazel | E5: Total | F5: =SUM(F2:F4) -> 10 | G5: 1 | L5: Brown | N5: 1 | P5: 3 | Q5: 4
A6: Tyrone | B6: Black | C6: Brown | L6: Grand Total | M6: 2 | N6: 4 | O6: 1 | P6: 3 | Q6: 10
A7: Lin | B7: Blond | C7: Brown | E7: Eye Color | F7: Frequency | G7: Relative Frequency
A8: Ducky | B8: Brown | C8: Brown | E8: Hazel | F8: =COUNTIFS($C$2:$C$11,E8) -> 3 | G8: =F8/$F$12 -> 0.3 | L8: Frequency | M8: Eye Color
A9: Kip | B9: Brown | C9: Hazel | E9: Blue | F9: 2 | G9: =F9/$F$12 -> 0.2 | L9: Hair Color | M9: Blue | N9: Brown | O9: Green | P9: Hazel | Q9: Grand Total
A10: Linda | B10: Blond | C10: Blue | E10: Brown | F10: 4 | G10: =F10/$F$12 -> 0.4 | L10: Black | M10: 0.5 | N10: 0.5 | O10: 0 | P10: 0 | Q10: 0.3
A11: Jo | B11: Blond | C11: Green | E11: Green | F11: 1 | G11: =F11/$F$12 -> 0.1 | L11: Blond | M11: 0.5 | N11: 0.25 | O11: 1 | P11: 0 | Q11: 0.3
E12: Total | F12: =SUM(F8:F11) -> 10 | G12: 1 | L12: Brown | M12: 0 | N12: 0.25 | O12: 0 | P12: 1 | Q12: 0.4
L13: Grand Total | M13: 1 | N13: 1 | O13: 1 | P13: 1 | Q13: 1
E14: Hair Color | F14: Eye Color | G14: Frequency | H14: Relative Frequency
E15: Brown | F15: Hazel | G15: =COUNTIFS($B$2:$B$11,E15,$C$2:$C$11,F15) -> 3 | H15: =G15/$G$22 -> 0.3 | L15: Frequency | M15: Eye Color
E16: Brown | F16: Brown | G16: 1 | H16: 0.1 | L16: Hair Color | M16: Blue | N16: Brown | O16: Green | P16: Hazel | Q16: Grand Total
E17: Black | F17: Blue | G17: 1 | H17: 0.1 | L17: Black | M17: 0.3333333333 | N17: 0.6666666667 | O17: 0 | P17: 0 | Q17: 1
E18: Black | F18: Brown | G18: 2 | H18: 0.2 | L18: Blond | M18: 0.3333333333 | N18: 0.3333333333 | O18: 0.3333333333 | P18: 0 | Q18: 1
E19: Blond | F19: Blue | G19: 1 | H19: 0.1 | L19: Brown | M19: 0 | N19: 0.25 | O19: 0 | P19: 0.75 | Q19: 1
E20: Blond | F20: Brown | G20: 1 | H20: 0.1 | L20: Grand Total | M20: 0.2 | N20: 0.4 | O20: 0.1 | P20: 0.3 | Q20: 1
E21: Blond | F21: Green | G21: 1 | H21: 0.1
F22: Total | G22: =SUM(G15:G21) -> 10 | H22: =SUM(H15:H21) -> 1 | L22: Frequency | M22: Eye Color
L23: Hair Color | M23: Blue | N23: Brown | O23: Green | P23: Hazel | Q23: Grand Total
L24: Black | M24: 0.1 | N24: 0.2 | O24: 0 | P24: 0 | Q24: 0.3
L25: Blond | M25: 0.1 | N25: 0.1 | O25: 0.1 | P25: 0 | Q25: 0.3
F26: Hair Color | G26: Eye Color | L26: Brown | M26: 0 | N26: 0.1 | O26: 0 | P26: 0.3 | Q26: 0.4
F27: Brown | L27: Grand Total | M27: 0.2 | N27: 0.4 | O27: 0.1 | P27: 0.3 | Q27: 1
G28: Hazel
G30: COUNTIFS | H30: =COUNTIFS(B2:B11,E15,C2:C11,F15) -> 3 | M30: =GETPIVOTDATA("Hair Color",$L$22,"Hair Color","Brown")+GETPIVOTDATA("Hair Color",$L$22,"Eye Color","Hazel")-GETPIVOTDATA("Hair Color",$L$22,"Hair Color","Brown","Eye Color","Hazel") -> 0.4
G31: DCOUNTA | H31: =DCOUNTA(B1:C11,1,F26:G28) -> 4
G32: SUMPRODUCT | H32: =SUMPRODUCT(--((B2:B11=F27)+(C2:C11=G28)>0)) -> 4 | J32: Hair Color
G33: SUM IF Boolean + | H33: =SUM(IF((B2:B11=F27)+(C2:C11=G28),1)) -> 4 | J33: Brown
G34: SUMPRODUCT 1 | H34: =COUNTIFS(B6:B15,E19,C6:C15,F19) -> 1 | J34: Eye Color
J35: Hazel

Sheet Print (hidden)
G1: Name | H1: Hair Color | I1: Eye Color
G2: Sioux | H2: Brown | I2: Hazel
G3: Chin | H3: Black | I3: Blue
G4: Shelia | H4: Black | I4: Brown
G5: Gigi | H5: Brown | I5: Hazel
G6: Tyrone | H6: Black | I6: Brown
G7: Lin | H7: Blond | I7: Brown
G8: Ducky | H8: Brown | I8: Brown
G9: Kip | H9: Brown | I9: Hazel
G10: Linda | H10: Blond | I10: Blue
G11: Jo | H11: Blond | I11: Green

Sheet SUMPRODUCT (hidden)
A1: Name | B1: Hair Color | C1: Eye Color | E1: AND Criteria
A2: Sioux | B2: Brown | C2: Hazel
A3: Chin | B3: Black | C3: Blue | E3: Hair Color | F3: Eye Color | G3: Count
A4: Shelia | B4: Black | C4: Brown | E4: Brown | F4: Hazel | G4: =COUNTIFS(B2:B11,E4,C2:C11,F4) -> 3 | H4: =COUNTIFS(B2:B11,E4,C2:C11,F4)
A5: Gigi | B5: Brown | C5: Hazel
A6: Tyrone | B6: Black | C6: Brown | E6: OR Criteria
A7: Lin | B7: Blond | C7: Brown
A8: Ducky | B8: Brown | C8: Brown | E8: Hair Color | F8: Eye Color | G8: Count | H8: Array Formula:
A9: Kip | B9: Brown | C9: Hazel | E9: Brown | F9: Hazel | G9: =SUMPRODUCT(--((B2:B11=E9)+(C2:C11=F9)>0)) -> 4 | H9: =SUMPRODUCT(--((B2:B11=E9)+(C2:C11=F9)>0))
A10: Linda | B10: Blond | C10: Blue | G10: =COUNTIFS(B2:B11,E9)+COUNTIFS(C2:C11,F9)-COUNTIFS(B2:B11,E9,C2:C11,F9) -> 4 | H10: =COUNTIFS(B2:B11,E9)+COUNTIFS(C2:C11,F9)-COUNTIFS(B2:B11,E9,C2:C11,F9)
A11: Jo | B11: Blond | C11: Green | H11: ="P("&E9&") + P("&F9&") - P("&E9&" AND "&F9&")" -> P(Brown) + P(Hazel) - P(Brown AND Hazel)
A13: Array Formula Notes:
A14: Array = "More than one item", In Excel it can be a range.
A15: Direct Array Operation = "Operator (such as = or +) calculating directly against a range"
A16: Direct Array Operations in formula:
A17: B2:B11=E9 | D17: Asks the question "Is anything in Hair Color range equal to Brown
A18: C2:C11=F9 | D18: Asks the question "Is anything in Eye Color range equal to Hazel
A19: (B2:B11=E9)+(C2:C11=F9) | D19: OR Criteria requires adding
A20: (B2:B11=E9)+(C2:C11=F9)>0 | D20: In order to not double count, we must ask the question "Are any of the values greater than zero?"
A21: --((B2:B11=E9)+(C2:C11=F9)>0) | D21: SUMPRODUCT does not understand TRUEs and FALSEs,
D22: so we must convert them to 1s and 0s with a math operation such as Double Negative

Sheet CP Print (hidden)
A1: Payment Method | B1: Amount of Purchase | AM1: Amount of Purchase | AP1: Cash | AR1: Cash | AS1: 1
A2: Debit | B2: 52.35 | AM2: =CHOOSE(RANDBETWEEN(1,2),RANDBETWEEN(25,9500)/100,IFERROR(CHOOSE(VLOOKUP(AL2,$AR$1:$AS$4,2,0),CHOOSE(RANDBETWEEN(1,2),ROUND(_xlfn.NORM.INV(RAND(),15,4),2),RANDBETWEEN(25,4300)/100),RANDBETWEEN(300,6500)/100,CHOOSE(RANDBETWEEN(1,2),RANDBETWEEN(200,7500)/100,ROUND(_xlfn.NORM.INV(RAND(),40,12),2)),CHOOSE(RANDBETWEEN(1,3),ROUND(_xlfn.NORM.INV(RAND(),50,14),2),RANDBETWEEN(4000,7900/100),RANDBETWEEN(1000,12000)/100)),RANDBETWEEN(25,7500)/100)) -> 40.09 | AP2: Cash | AR2: Debit | AS2: 2
A3: Credit | B3: 75.28 | AP3: Debit | AR3: Credit | AS3: 3
A4: Credit | B4: 28.88 | J4: Max Purchase | AP4: Debit | AR4: Check | AS4: 4
A5: Debit | B5: 58.67 | J5: =MAX(B2:B201) -> 99.82 | AP5: Debit
A6: Credit | B6: 20.26 | AP6: Debit
A7: Cash | B7: 26.17 | AP7: Debit
A8: Cash | B8: 10.72 | H8: 0 | I8: =H8+25 -> 25 | J8: =I8+25 -> 50 | K8: 75 | AP8: Credit
A9: Cash | B9: 50.19 | H9: 25 | I9: =H9+25 -> 50 | J9: =I9+25 -> 75 | K9: 100 | AP9: Credit
A10: Debit | B10: 43.21 | AP10: Credit
A11: Credit | B11: 27.66 | AP11: Credit
A12: Credit | B12: 77.78 | AP12: Credit
A13: Cash | B13: 55.21 | AP13: Credit
A14: Credit | B14: 19.57 | F14: Random Sample of 200 Purchases at Convenience Store | AP14: Credit
A15: Cash | B15: 6.23 | H15: Amount | AP15: Check
A16: Cash | B16: 38.03 | H16: ="$"&H$8&" up to $"&H$9 -> $0 up to $25 | I16: ="$"&I$8&" up to $"&I$9 -> $25 up to $50 | J16: $50 up to $75 | K16: =">= &"&K8 -> >= &75 | L16: Total | AP16: Check
A17: Debit | B17: 44.51 | F17: Payment Method | G17: Cash | H17: =COUNTIFS($A$2:$A$201,$G17,$B$2:$B$201,">="&H$8,$B$2:$B$201,"<"&H$9) -> 21 | I17: 11 | J17: 9 | K17: 3 | L17: =SUM(H17:K17) -> 44 | AP17: Cash
A18: Debit | B18: 43.73 | G18: Debit | H18: 20 | I18: 15 | J18: 14 | K18: 8 | L18: 57
A19: Credit | B19: 56.67 | G19: Credit | H19: 16 | I19: 28 | J19: 27 | K19: 15 | L19: 86
A20: Debit | B20: 12.89 | G20: Check | H20: 6 | I20: 3 | J20: 2 | K20: 2 | L20: 13
A21: Credit | B21: 88.43 | G21: Total | H21: =SUM(H17:H20) -> 63 | I21: 57 | J21: 52 | K21: 28 | L21: 200
A22: Debit | B22: 11.44
A23: Debit | B23: 46.6
A24: Cash | B24: 19.32
A25: Cash | B25: 35.33
A26: Debit | B26: 76.4
A27: Debit | B27: 35
A28: Check | B28: 90.53
A29: Credit | B29: 31.4 | H29: Amount
A30: Debit | B30: 3.14 | H30: =H$16 -> $0 up to $25 | I30: $25 up to $50 | J30: $50 up to $75 | K30: >= &75 | L30: Total
A31: Credit | B31: 5.75 | F31: Payment Method | G31: Cash | H31: =H17/$L$21 -> 0.105 | I31: 0.055 | J31: 0.045 | K31: 0.015 | L31: 0.22
A32: Check | B32: 99.82 | G32: Debit | H32: 0.1 | I32: 0.075 | J32: 0.07 | K32: 0.04 | L32: 0.285
A33: Credit | B33: 24.51 | G33: Credit | H33: 0.08 | I33: 0.14 | J33: 0.135 | K33: 0.075 | L33: 0.43
A34: Cash | B34: 13.22 | G34: Check | H34: 0.03 | I34: 0.015 | J34: 0.01 | K34: 0.01 | L34: 0.065
A35: Cash | B35: 4.62 | G35: Total | H35: 0.315 | I35: 0.285 | J35: 0.26 | K35: 0.14 | L35: 1
A36: Debit | B36: 61.39
A37: Credit | B37: 64.09
A38: Cash | B38: 9.32
A39: Cash | B39: 22.13
A40: Debit | B40: 33.28
A41: Credit | B41: 34.34
A42: Cash | B42: 69.98
A43: Credit | B43: 71.05 | H43: Amount
A44: Cash | B44: 18.57 | H44: =H$16 -> $0 up to $25 | I44: $25 up to $50 | J44: $50 up to $75 | K44: >= &75 | L44: Total
A45: Credit | B45: 40.62 | F45: Payment Method | G45: Cash | H45: =H17/H$21 -> 0.3333333333 | I45: 0.1929824561 | J45: 0.1730769231 | K45: 0.1071428571 | L45: 0.22
A46: Cash | B46: 38.01 | G46: Debit | H46: 0.3174603175 | I46: 0.2631578947 | J46: 0.2692307692 | K46: 0.2857142857 | L46: 0.285
A47: Credit | B47: 50.28 | G47: Credit | H47: 0.253968254 | I47: 0.4912280702 | J47: 0.5192307692 | K47: 0.5357142857 | L47: 0.43
A48: Credit | B48: 51.26 | G48: Check | H48: 0.09523809524 | I48: 0.05263157895 | J48: 0.03846153846 | K48: 0.07142857143 | L48: 0.065
A49: Credit | B49: 85.25 | G49: Total | H49: 1 | I49: 1 | J49: 1 | K49: 1 | L49: 1
A50: Credit | B50: 36.53
A51: Credit | B51: 42.2
A52: Credit | B52: 36.27
A53: Credit | B53: 23.59
A54: Credit | B54: 53.96
A55: Debit | B55: 21.55
A56: Credit | B56: 22.28
A57: Debit | B57: 11.75
A58: Cash | B58: 8.47
A59: Credit | B59: 62.42
A60: Credit | B60: 51.39
A61: Cash | B61: 32.49
A62: Debit | B62: 92.25
A63: Credit | B63: 28.39
A64: Credit | B64: 43.83
A65: Credit | B65: 55.66
A66: Debit | B66: 92.62
A67: Credit | B67: 43.42
A68: Debit | B68: 2.23
A69: Credit | B69: 38.6
A70: Debit | B70: 57.49
A71: Credit | B71: 46.47
A72: Credit | B72: 3.49
A73: Debit | B73: 2.39
A74: Credit | B74: 79.32
A75: Credit | B75: 51.93
A76: Credit | B76: 52.72
A77: Credit | B77: 17.95
A78: Credit | B78: 15.46
A79: Credit | B79: 91.55
A80: Cash | B80: 68.92
A81: Debit | B81: 71.23
A82: Check | B82: 18.96
A83: Cash | B83: 65.64
A84: Credit | B84: 76.75
A85: Debit | B85: 56.25
A86: Debit | B86: 71.36
A87: Credit | B87: 43.71
A88: Cash | B88: 86.1
A89: Check | B89: 51.21
A90: Credit | B90: 43.86
A91: Credit | B91: 91.24
A92: Credit | B92: 72.48
A93: Credit | B93: 50.22
A94: Debit | B94: 61.77
A95: Credit | B95: 76
A96: Credit | B96: 85.49
A97: Credit | B97: 39.57
A98: Cash | B98: 60.66
A99: Credit | B99: 60.49
A100: Cash | B100: 56.1
A101: Cash | B101: 67.4
A102: Check | B102: 61.14
A103: Credit | B103: 16.19
A104: Credit | B104: 75.98
A105: Debit | B105: 82.76
A106: Check | B106: 14.47
A107: Debit | B107: 44.89
A108: Credit | B108: 94.6
A109: Cash | B109: 47
A110: Debit | B110: 18.17
A111: Cash | B111: 11.54
A112: Credit | B112: 83.44
A113: Debit | B113: 19.72
A114: Debit | B114: 14.33
A115: Debit | B115: 59.56
A116: Cash | B116: 13.43
A117: Check | B117: 14.92
A118: Cash | B118: 94.02
A119: Debit | B119: 49.3
A120: Cash | B120: 46.75
A121: Debit | B121: 6.27
A122: Debit | B122: 61.89
A123: Credit | B123: 35.49
A124: Credit | B124: 73
A125: Cash | B125: 27.44
A126: Credit | B126: 48.87
A127: Credit | B127: 71.36
A128: Credit | B128: 25.59
A129: Debit | B129: 21.36
A130: Credit | B130: 6.17
A131: Credit | B131: 38.24
A132: Debit | B132: 37.39
A133: Credit | B133: 58.85
A134: Credit | B134: 80.57
A135: Credit | B135: 55.83
A136: Cash | B136: 17.72
A137: Credit | B137: 69.58
A138: Debit | B138: 72.13
A139: Credit | B139: 6.97
A140: Credit | B140: 59.5
A141: Check | B141: 3.06
A142: Cash | B142: 14.61
A143: Check | B143: 49.04
A144: Debit | B144: 77.05
A145: Cash | B145: 27.18
A146: Credit | B146: 57.28
A147: Check | B147: 36.11
A148: Debit | B148: 22.18
A149: Credit | B149: 18.29
A150: Credit | B150: 3.83
A151: Debit | B151: 19.33
A152: Check | B152: 20.49
A153: Cash | B153: 11.3
A154: Credit | B154: 40.6
A155: Cash | B155: 37.14
A156: Credit | B156: 60.21
A157: Cash | B157: 17.59
A158: Credit | B158: 44.52
A159: Cash | B159: 49.51
A160: Credit | B160: 59.8
A161: Credit | B161: 39.6
A162: Debit | B162: 18.8
A163: Credit | B163: 71.58
A164: Cash | B164: 15.78
A165: Debit | B165: 26.69
A166: Debit | B166: 40.45
A167: Debit | B167: 21.15
A168: Credit | B168: 69.87
A169: Check | B169: 38.88
A170: Cash | B170: 7.19
A171: Debit | B171: 37.91
A172: Cash | B172: 23.22
A173: Cash | B173: 12.68
A174: Credit | B174: 38.77
A175: Debit | B175: 48.13
A176: Credit | B176: 46.76
A177: Credit | B177: 86.21
A178: Debit | B178: 31.98
A179: Debit | B179: 92.24
A180: Debit | B180: 70.1
A181: Cash | B181: 68.77
A182: Check | B182: 8.94
A183: Credit | B183: 10.7
A184: Credit | B184: 5.09
A185: Debit | B185: 64.74
A186: Cash | B186: 80.6
A187: Credit | B187: 51.84
A188: Debit | B188: 58.83
A189: Debit | B189: 83.94
A190: Debit | B190: 47.13
A191: Credit | B191: 72.92
A192: Credit | B192: 46.53
A193: Credit | B193: 48.82
A194: Debit | B194: 19.22
A195: Debit | B195: 89.32
A196: Credit | B196: 46.72
A197: Debit | B197: 16.2
A198: Cash | B198: 11.59
A199: Debit | B199: 16.01
A200: Cash | B200: 13.34
... 1 more rows

Sheet Multiply (an)
A1: Independent Events
A2: P(A | B) = P(A), B has no affect on A or P(B | A) = P(B), A has no affect on B
A4: Multiplication Law for Probability
A5: P(A AND B) = P(B) * P(A | B)
A6: or
A7: P(A AND B) = P(A) * P(B | A)
A8: If events are independent, then:
A9: P(A AND B) = P(A) * P(B)
A10: We can also solve for Conditional Probability:
A11: P(A | B) = P(A AND B)/P(B) or P(B | A) = P(A AND B)/P(A)
A13: Note: Multiply = AND = ∩ = Intersection = *
A15: Example 1: Probability of Pulling 3 Straight Queens?
A17: Cards in Deck (Population) | D17: 52
A18: Queens in deck (total # successes) | D18: 4
A19: # of cards to pull (Sample Size) = | D19: 1
A20: # of Queens (# of successes) = | D20: 1
A21: P(Pull 1 Queen w/out Replacement) = | D21: =D18/D17 -> 0.07692307692 | E21: =D18&"/"&D17&" = "&TEXT(D18/D17,"?/??") -> 4/52 = 1/13
A22: How total many Cards Left? | D22: 51
A23: How Queens Left? | D23: 3
A24: P(Q2 | Q1) | D24: =D23/D22 -> 0.05882352941 | E24: =D23&"/"&D22&" = "&TEXT(D23/D22,"?/??") -> 3/51 = 1/17 | F24: Sample Space has changed
A25: How total many Cards Left? | D25: 50
A26: How Queens Left? | D26: 2
A27: P(Q3 | Q2 | Q1) | D27: =D26/D25 -> 0.04 | E27: =D26&"/"&D25&" = "&TEXT(D26/D25,"?/??") -> 2/50 = 1/25 | F27: Sample Space has changed
A29: Events are NOT Independent, so: P(A AND B) = P(A) * P(B | A)
A30: P(Pull 2 Straight Queens) | D30: =D21*D24 -> 0.004524886878 | E30: (Q,Q) | F30: P(Q1 AND Q2) = P(Q1)*P(Q2 | Q1)
A31: P(Pull 3 Straight Queens) | D31: =D21*D24*D27 -> 0.0001809954751 | E31: (Q,Q,Q) | F31: P(Q1 AND Q2 AND Q3) = P(Q1)*P(Q2 | Q1)*P(Q3 | Q2 | Q1) | M31: =_xlfn.HYPGEOM.DIST(D48,D47,D46,D45,0) -> 0.01303167421 | O31: HYPGEOM.DIST function
D32: =4/52*3/51*2/50 -> 0.0001809954751
A33: For this example, there is only one sample point.
A35: Example 2: Probability of Pulling Q, then Not Q, then Q?
A37: Events are NOT Independent, so: P(A AND B AND C) = P(A) * P(B | A) * P(C | B | A)
A38: Step 1 | B38: Step 2 | C38: Step 3 | D38: P(SP)
A39: Q | B39: NQ | C39: Q | D39: =4/52*(51-3)/51*3/50 -> 0.004343891403 | G39: P(Single Sample Point: Q1, NQ, Q2) = P(Q1)*P(NQ | Q1)*P(Q2 | NQ | Q1)
A41: For this example, there is only one sample point.
A43: Example 3: Probability of Pulling 2 Queens in 3 tries?
A45: Cards in Deck (population size) | D45: 52 | F45: Cards in Deck (Population) | I45: 52
A46: Queens in deck (total # successes in pop.) | D46: 4 | F46: Queens in deck (total # successes) | I46: 4
A47: # of cards to pull (Sample Size) = | D47: 3 | F47: # of cards to pull (Sample Size) = | I47: 3
A48: # of Queens (# of successes) = | D48: 2 | F48: # of Queens (# of successes) = | I48: 2
A49: P(Pull 2 Queens in 3 tries) | D49: =SUM(D54:D56) -> 0.01303167421 | F49: P(Pull 2 Queens in 3 tries) | I49: =_xlfn.HYPGEOM.DIST(I48,I47,I46,I45,0) -> 0.01303167421
A51: More than one Sample Point. It comes down to add the probabilities for the sample points… | I51: HYPGEOM.DIST function
A52: Events are NOT Independent | I52: sample_s = Number of Successes in Sample
A53: Step 1 | B53: Step 2 | C53: Step 3 | D53: P(SP) | I53: number_sample = Sample Size
A54: Q | B54: Q | C54: NQ | D54: =4/52*3/51*(50-2)/50 -> 0.004343891403 | I54: population_s = Number Successes in Pop.
A55: Q | B55: NQ | C55: Q | D55: =4/52*(51-3)/51*3/50 -> 0.004343891403 | I55: number_pop = Population Size
A56: NQ | B56: Q | C56: Q | D56: =(52-4)/52*4/51*3/50 -> 0.004343891403 | I56: cumulative = 0 for individual probability, 1 if you want to add from low to high (chapter 5).
A59: Example 3: Probability Google stock and Whole Foods stock with both go up next year
A61: Probability Google Stock Goes Up | D61: 0.35
A62: Probability Whole Foods Goes Up | D62: 0.2
A64: Events are assumed to be Independent, so: P(G AND W) = P(G) * P(W)
A65: P(Google up AND Whole Food up) | D65: =D61*D62 -> 0.07
A68: Example 4: Probability 3 straight products off assembly line are defective (any one try = 0.02)?
A70: Probability Defect on any 1 try | D70: 0.02
A72: Events are assumed to be Independent, so: P(A AND B AND C) = P(A) * P(B) * P(C)
A73: P(3 Straight Defects Off Assembly Line) | D73: =D70*D70*D70 -> 8e-06
A76: Example 5: Probability 2 out of 3 products off assembly line are defective (any one try = 0.02)?
A78: Success = Defect | D78: D | E78: Defect
A79: Number Successes | D79: 2 | F79: Number Successes | I79: 2
A80: Total Steps/Trials | D80: 3 | F80: Total Steps/Trials | I80: 3
A81: Probability of Success = P(Defect) | D81: 0.02 | F81: Probability of Success = P(Defect) | I81: 0.02
A82: Probability Not Defect | D82: =1-D81 -> 0.98 | F82: P(2 Defects in 3 Tries) | I82: =_xlfn.BINOM.DIST(I79,I80,I81,0) -> 0.001176
A83: P(2 Defects in 3 Tries) | D83: =SUM(D88:D90) -> 0.001176
I84: BINOM.DIST function
A85: More than one Sample Point. It comes down to add the probabilities for the sample points… | I85: number_s = Number of Successes
A86: Events are Independent | I86: trials = Total Steps/Trials
A87: Step 1 | B87: Step 2 | C87: Step 3 | D87: P(SP) | I87: probability_s = Probability of Success
A88: D | B88: D | C88: ND | D88: =D81*D81*D82 -> 0.000392 | I88: cumulative = 0 for individual probability, 1 if you want to add from low to high (chapter 5).
A89: D | B89: ND | C89: D | D89: =D81*D82*D81 -> 0.000392
A90: ND | B90: D | C90: D | D90: =D82*D81*D81 -> 0.000392
A93: Example 6: Travel survey of people who visit Seattle
A95: Visit Space Needle, P(SN) = | E95: 0.45
A96: Visit Pike's Place Market, P(PP)= | E96: 0.65
A97: Visit Both | E97: 0.25
A99: Events are NOT Independent
A100: Solve for Conditional: P(A | B) = P(A AND B)/P(B)
A101: P(Visit Space Needle | Pike's Place) = P(SN | PP) | E101: =E97/E96 -> 0.3846153846 | G101: P(SN | PP) = P(SN AND PP)/P(PP)
A103: P(PP | SN) | E103: =E97/E95 -> 0.5555555556 | G103: P(PP | SN) = P(SN AND PP)/P(SN)

Sheet Cross Tab No DS
B1: Units Sold | D1: Region
D2: West | E2: Midwest
C3: Quad | D3: 7915 | E3: 7652 | F3: =SUM(D3:E3) -> 15567
B4: Product | C4: Tri-Fly | D4: 9079 | E4: 3430 | F4: 12509
C5: V Rang | D5: 11308 | E5: 4418 | F5: 15726
D6: =SUM(D3:D5) -> 28302 | E6: 15500 | F6: 43802
A10: Ex 1: | B10: What is probability that a Quad was sold, given that it was sold in the Midwest
B11: If the product was sold in Midwest, what is the probability that it was a Quad
B12: P( Quad | Midwest) = | F12: Conditional = Inside Number/Marginal Number (Total that is not Grand Total)
A14: Ex 2: | B14: What is the probability that we sold a Quad in the Midwest?
B15: P( Quad AND Midwest) = | F15: AND, "Joint", "Intersection", Ç = Inside Number/GrandTotal
A17: Ex 3: | B17: What is the probability that we had a sale in the Midwest or the sale was for a Quad?
B18: P( Quad OR Midwest) = | F18: OR = (Marginal Number 1 + Marginal Number 2 - Inside Number)/Grand Total
D23: Region
D24: West | E24: Midwest
C25: Quad | D25: =D3/$F$6 -> 0.1806995114 | E25: 0.1746952194 | F25: 0.3553947308
B26: Product | C26: Tri-Fly | D26: 0.2072736405 | E26: 0.07830692662 | F26: 0.2855805671
C27: V Rang | D27: 0.2581617278 | E27: 0.1008629743 | F27: 0.3590247021
D28: 0.6461348797 | E28: 0.3538651203 | F28: 1
A32: Ex 1: | B32: What is probability that a Quad was sold, given that it was sold in the Midwest
B33: If the product was sold in Midwest, what is the probability that it was a Quad
B34: P( Quad | Midwest) = | F34: Conditional = AND/Marginal
A36: Ex 2: | B36: What is the probability that we sold a Quad in the Midwest?
B37: P( Quad AND Midwest) = | F37: AND, "Joint", "Intersection", Ç = Inside Number
A39: Ex 3: | B39: What is the probability that we had a sale in the Midwest or the sale was for a Quad?
B40: P( Quad OR Midwest) = | F40: OR = Marginal 1 % + Marginal 2 % - AND

Sheet Cross Tab No DS (an)
D1: Region
D2: West | E2: Midwest
C3: Quad | D3: 7915 | E3: 7652 | F3: =SUM(D3:E3) -> 15567
B4: Product | C4: Tri-Fly | D4: 9079 | E4: 3430 | F4: 12509
C5: V Rang | D5: 11308 | E5: 4418 | F5: 15726
D6: =SUM(D3:D5) -> 28302 | E6: 15500 | F6: 43802
A10: Ex 1: | B10: What is probability that a Quad was sold, given that it was sold in the Midwest
B11: If the product was sold in Midwest, what is the probability that it was a Quad
B12: P( Quad | Midwest) = | D12: =E3/E6 -> 0.4936774194 | F12: Conditional = Inside Number/Marginal Number (Total that is not Grand Total)
A14: Ex 2: | B14: What is the probability that we sold a Quad in the Midwest?
B15: P( Quad AND Midwest) = | D15: =E3/F6 -> 0.1746952194 | F15: AND, "Joint", "Intersection", Ç = Inside Number/GrandTotal
A17: Ex 3: | B17: What is the probability that we had a sale in the Midwest or the sale was for a Quad?
B18: P( Quad OR Midwest) = | D18: =(F3+E6-E3)/F6 -> 0.5345646318 | F18: OR = (Marginal Number 1 + Marginal Number 2 - Inside Number)/Grand Total
D23: Region
D24: West | E24: Midwest
C25: Quad | D25: =D3/$F$6 -> 0.1806995114 | E25: 0.1746952194 | F25: 0.3553947308
B26: Product | C26: Tri-Fly | D26: 0.2072736405 | E26: 0.07830692662 | F26: 0.2855805671
C27: V Rang | D27: 0.2581617278 | E27: 0.1008629743 | F27: 0.3590247021
D28: 0.6461348797 | E28: 0.3538651203 | F28: 1
A32: Ex 1: | B32: What is probability that a Quad was sold, given that it was sold in the Midwest
B33: If the product was sold in Midwest, what is the probability that it was a Quad
B34: P( Quad | Midwest) = | D34: =E25/E28 -> 0.4936774194 | F34: Conditional = AND/Marginal
A36: Ex 2: | B36: What is the probability that we sold a Quad in the Midwest?
B37: P( Quad AND Midwest) = | D37: =E25 -> 0.1746952194 | F37: AND, "Joint", "Intersection", Ç = Inside Number
A39: Ex 3: | B39: What is the probability that we had a sale in the Midwest or the sale was for a Quad?
B40: P( Quad OR Midwest) = | D40: =F25+E28-E25 -> 0.5345646318 | F40: OR = Marginal 1 % + Marginal 2 % - AND

Sheet Data Set
A1: Date | B1: Region | C1: Product | D1: Sales Rep
A2: 2014-02-08 | B2: West | C2: Quad | D2: Chun
A3: 2015-02-10 | B3: West | C3: Quad | D3: Tyrone
A4: 2014-10-11 | B4: West | C4: Quad | D4: Philly
A5: 2015-10-18 | B5: West | C5: Quad | D5: Kip
A6: 2015-04-14 | B6: West | C6: Quad | D6: Chun
A7: 2015-01-03 | B7: West | C7: Quad | D7: Philly
A8: 2015-07-20 | B8: West | C8: Quad | D8: Tyrone
A9: 2014-02-07 | B9: West | C9: Quad | D9: Chun
A10: 2015-11-24 | B10: West | C10: Quad | D10: Kip
A11: 2014-05-01 | B11: West | C11: Quad | D11: Tyrone | F11: Ex 1: | G11: P(Quad Sold) = | K11: P(Q)
A12: 2015-01-01 | B12: West | C12: Quad | D12: Kip
A13: 2015-03-05 | B13: West | C13: Quad | D13: Kip | F13: Ex 2: | G13: P(Gigi Sold Quad) = | K13: P(G AND Q)
A14: 2014-09-01 | B14: West | C14: Quad | D14: Tyrone
A15: 2015-08-20 | B15: West | C15: Quad | D15: Tyrone | F15: Ex 3: | G15: Sales Team 2 = Tyrone, Gigi, Philly
A16: 2014-03-29 | B16: West | C16: Quad | D16: Chun | G16: P(Team 2 made Sale) = | K16: P(T OR G OR P) | M16: Events are Mutually Exclusive
A17: 2014-05-12 | B17: West | C17: Quad | D17: Tyrone
A18: 2015-07-01 | B18: West | C18: Quad | D18: Dim | F18: Ex 4: | G18: P(Sale for V Rang OR Sale by Dim) | K18: P(V) + P(D) - P(V AND D) | N18: Events are NOT Mutually Exclusive, MUST subtract to avoid Double Counting
A19: 2015-09-04 | B19: West | C19: Quad | D19: Philly
A20: 2015-04-16 | B20: West | C20: Quad | D20: Chun | F20: Ex 5: | G20: P(Chun | Try-Fly) | K20: P(C AND TF)/P(TF)
A21: 2014-10-28 | B21: West | C21: Quad | D21: Chun
A22: 2015-07-07 | B22: West | C22: Quad | D22: Philly
A23: 2015-06-18 | B23: West | C23: Quad | D23: Dim
A24: 2014-10-25 | B24: West | C24: Quad | D24: Gigi
A25: 2014-07-20 | B25: West | C25: Quad | D25: Tyrone
A26: 2015-05-24 | B26: West | C26: Quad | D26: Dim
A27: 2014-02-18 | B27: West | C27: Quad | D27: Tyrone
A28: 2014-10-17 | B28: West | C28: Quad | D28: Philly
A29: 2014-11-30 | B29: West | C29: Quad | D29: Kip
A30: 2015-03-17 | B30: West | C30: Quad | D30: Gigi
A31: 2014-09-05 | B31: West | C31: Quad | D31: Tyrone
A32: 2015-05-29 | B32: West | C32: Quad | D32: Tyrone
A33: 2014-06-17 | B33: West | C33: Quad | D33: Gigi
A34: 2014-07-07 | B34: West | C34: Quad | D34: Chun
A35: 2015-05-10 | B35: West | C35: Quad | D35: Kip
A36: 2015-07-14 | B36: West | C36: Quad | D36: Tyrone
A37: 2014-07-31 | B37: West | C37: Quad | D37: Tyrone
A38: 2015-01-09 | B38: West | C38: Quad | D38: Dim
A39: 2015-05-24 | B39: West | C39: Quad | D39: Tyrone
A40: 2015-07-29 | B40: West | C40: Quad | D40: Kip
A41: 2014-01-04 | B41: West | C41: Quad | D41: Tyrone
A42: 2014-09-23 | B42: West | C42: Quad | D42: Philly
A43: 2015-01-15 | B43: West | C43: Quad | D43: Kip
A44: 2014-07-21 | B44: West | C44: Quad | D44: Dim
A45: 2015-07-25 | B45: West | C45: Quad | D45: Gigi
A46: 2015-01-07 | B46: West | C46: Quad | D46: Philly
A47: 2015-01-19 | B47: West | C47: Quad | D47: Tyrone
A48: 2015-08-21 | B48: West | C48: Quad | D48: Philly
A49: 2015-11-30 | B49: West | C49: Quad | D49: Kip
A50: 2014-06-06 | B50: West | C50: Quad | D50: Tyrone
A51: 2015-10-31 | B51: West | C51: Quad | D51: Tyrone
A52: 2014-02-21 | B52: West | C52: Quad | D52: Kip
A53: 2014-12-17 | B53: West | C53: Quad | D53: Tyrone
A54: 2015-08-01 | B54: West | C54: Quad | D54: Kip
A55: 2014-06-06 | B55: West | C55: Quad | D55: Chun
A56: 2015-03-13 | B56: West | C56: Quad | D56: Tyrone
A57: 2014-11-07 | B57: West | C57: Quad | D57: Chun
A58: 2015-05-30 | B58: West | C58: Quad | D58: Gigi
A59: 2014-01-14 | B59: West | C59: Quad | D59: Philly
A60: 2015-04-08 | B60: West | C60: Quad | D60: Tyrone
A61: 2015-11-29 | B61: West | C61: Quad | D61: Kip
A62: 2014-08-06 | B62: West | C62: Quad | D62: Kip
A63: 2014-10-12 | B63: West | C63: Quad | D63: Gigi
A64: 2015-02-27 | B64: West | C64: Quad | D64: Gigi
A65: 2014-05-30 | B65: West | C65: Quad | D65: Philly
A66: 2014-03-08 | B66: West | C66: Quad | D66: Tyrone
A67: 2015-02-05 | B67: West | C67: Quad | D67: Chun
A68: 2014-07-30 | B68: West | C68: Quad | D68: Kip
A69: 2014-02-02 | B69: West | C69: Quad | D69: Tyrone
A70: 2015-07-29 | B70: West | C70: Quad | D70: Gigi
A71: 2015-12-12 | B71: West | C71: Quad | D71: Kip
A72: 2014-01-07 | B72: West | C72: Quad | D72: Kip
A73: 2015-02-09 | B73: West | C73: Quad | D73: Gigi
A74: 2014-10-10 | B74: West | C74: Quad | D74: Gigi
A75: 2015-12-14 | B75: West | C75: Quad | D75: Gigi
A76: 2015-02-21 | B76: West | C76: Quad | D76: Gigi
A77: 2014-11-26 | B77: West | C77: Quad | D77: Tyrone
A78: 2014-08-02 | B78: West | C78: Quad | D78: Kip
A79: 2015-10-19 | B79: West | C79: Quad | D79: Tyrone
A80: 2014-09-20 | B80: West | C80: Quad | D80: Gigi
A81: 2014-06-08 | B81: West | C81: Quad | D81: Chun
A82: 2014-12-31 | B82: West | C82: Quad | D82: Tyrone
A83: 2014-09-04 | B83: West | C83: Quad | D83: Kip
A84: 2014-06-27 | B84: West | C84: Quad | D84: Philly
A85: 2015-02-03 | B85: West | C85: Quad | D85: Chun
A86: 2015-04-29 | B86: West | C86: Quad | D86: Gigi
A87: 2014-03-30 | B87: West | C87: Quad | D87: Tyrone
A88: 2015-12-08 | B88: West | C88: Quad | D88: Dim
A89: 2015-10-02 | B89: West | C89: Quad | D89: Gigi
A90: 2015-10-12 | B90: West | C90: Quad | D90: Kip
A91: 2015-06-16 | B91: West | C91: Quad | D91: Dim
A92: 2014-12-09 | B92: West | C92: Quad | D92: Gigi
A93: 2014-03-10 | B93: West | C93: Quad | D93: Dim
A94: 2014-01-30 | B94: West | C94: Quad | D94: Kip
A95: 2014-01-11 | B95: West | C95: Quad | D95: Kip
A96: 2015-08-07 | B96: West | C96: Quad | D96: Dim
A97: 2014-08-14 | B97: West | C97: Quad | D97: Tyrone
A98: 2015-12-26 | B98: West | C98: Quad | D98: Philly
A99: 2014-10-13 | B99: West | C99: Quad | D99: Dim
A100: 2015-07-17 | B100: West | C100: Quad | D100: Tyrone
A101: 2014-10-12 | B101: West | C101: Quad | D101: Dim
A102: 2015-11-18 | B102: West | C102: Quad | D102: Tyrone
A103: 2014-02-23 | B103: West | C103: Quad | D103: Kip
A104: 2014-06-25 | B104: West | C104: Quad | D104: Kip
A105: 2015-07-16 | B105: West | C105: Quad | D105: Dim
A106: 2014-08-15 | B106: West | C106: Quad | D106: Tyrone
A107: 2015-04-02 | B107: West | C107: Quad | D107: Philly
A108: 2015-09-01 | B108: West | C108: Quad | D108: Kip
A109: 2014-02-12 | B109: West | C109: Quad | D109: Tyrone
A110: 2014-03-08 | B110: West | C110: Quad | D110: Chun
A111: 2015-06-02 | B111: West | C111: Quad | D111: Tyrone
A112: 2015-02-02 | B112: West | C112: Quad | D112: Gigi
A113: 2014-06-28 | B113: West | C113: Quad | D113: Tyrone
A114: 2014-01-04 | B114: West | C114: Quad | D114: Tyrone
A115: 2015-07-18 | B115: West | C115: Quad | D115: Gigi
A116: 2015-09-22 | B116: West | C116: Quad | D116: Dim
A117: 2014-04-02 | B117: West | C117: Quad | D117: Gigi
A118: 2015-08-23 | B118: West | C118: Quad | D118: Dim
A119: 2014-03-04 | B119: West | C119: Quad | D119: Kip
A120: 2014-03-07 | B120: West | C120: Quad | D120: Kip
A121: 2014-05-07 | B121: West | C121: Quad | D121: Gigi
A122: 2015-11-04 | B122: West | C122: Quad | D122: Tyrone
A123: 2014-02-18 | B123: West | C123: Quad | D123: Tyrone
A124: 2014-02-22 | B124: West | C124: Quad | D124: Chun
A125: 2015-07-02 | B125: West | C125: Quad | D125: Tyrone
A126: 2015-11-23 | B126: West | C126: Quad | D126: Tyrone
A127: 2015-07-09 | B127: West | C127: Quad | D127: Kip
A128: 2015-11-14 | B128: West | C128: Quad | D128: Chun
A129: 2015-07-16 | B129: West | C129: Quad | D129: Tyrone
A130: 2015-08-01 | B130: West | C130: Quad | D130: Kip
A131: 2015-12-02 | B131: West | C131: Quad | D131: Gigi
A132: 2014-11-22 | B132: West | C132: Quad | D132: Tyrone
A133: 2014-06-20 | B133: West | C133: Quad | D133: Dim
A134: 2015-03-17 | B134: West | C134: Quad | D134: Tyrone
A135: 2014-07-17 | B135: West | C135: Quad | D135: Tyrone
A136: 2015-09-11 | B136: West | C136: Quad | D136: Gigi
A137: 2014-11-02 | B137: West | C137: Quad | D137: Gigi
A138: 2014-11-20 | B138: West | C138: Quad | D138: Chun
A139: 2014-04-06 | B139: West | C139: Quad | D139: Kip
A140: 2015-07-23 | B140: West | C140: Quad | D140: Tyrone
A141: 2014-11-14 | B141: West | C141: Quad | D141: Tyrone
A142: 2014-07-06 | B142: West | C142: Quad | D142: Dim
A143: 2014-09-05 | B143: West | C143: Quad | D143: Dim
A144: 2014-07-19 | B144: West | C144: Quad | D144: Gigi
A145: 2014-07-26 | B145: West | C145: Quad | D145: Chun
A146: 2015-06-12 | B146: West | C146: Quad | D146: Gigi
A147: 2015-03-31 | B147: West | C147: Quad | D147: Tyrone
A148: 2014-08-11 | B148: West | C148: Quad | D148: Tyrone
A149: 2014-09-24 | B149: West | C149: Quad | D149: Tyrone
A150: 2015-06-27 | B150: West | C150: Quad | D150: Kip
A151: 2014-11-01 | B151: West | C151: Quad | D151: Gigi
A152: 2014-07-14 | B152: West | C152: Quad | D152: Tyrone
A153: 2015-11-15 | B153: West | C153: Quad | D153: Tyrone
A154: 2015-03-30 | B154: West | C154: Quad | D154: Kip
A155: 2015-11-13 | B155: West | C155: Quad | D155: Philly
A156: 2015-11-08 | B156: West | C156: Quad | D156: Gigi
A157: 2014-07-27 | B157: West | C157: Quad | D157: Kip
A158: 2015-09-02 | B158: West | C158: Quad | D158: Kip
A159: 2015-01-13 | B159: West | C159: Quad | D159: Gigi
A160: 2014-09-18 | B160: West | C160: Quad | D160: Philly
A161: 2015-08-01 | B161: West | C161: Quad | D161: Philly
A162: 2015-06-02 | B162: West | C162: Quad | D162: Dim
A163: 2015-01-31 | B163: West | C163: Quad | D163: Gigi
A164: 2015-03-30 | B164: West | C164: Quad | D164: Gigi
A165: 2014-03-29 | B165: West | C165: Quad | D165: Tyrone
A166: 2015-11-20 | B166: West | C166: Quad | D166: Tyrone
A167: 2014-09-27 | B167: West | C167: Quad | D167: Gigi
A168: 2015-07-18 | B168: West | C168: Quad | D168: Tyrone
A169: 2014-06-15 | B169: West | C169: Quad | D169: Kip
A170: 2014-01-21 | B170: West | C170: Quad | D170: Gigi
A171: 2015-10-12 | B171: West | C171: Quad | D171: Chun
A172: 2014-05-18 | B172: West | C172: Quad | D172: Tyrone
A173: 2015-07-02 | B173: West | C173: Quad | D173: Gigi
A174: 2014-11-25 | B174: West | C174: Quad | D174: Kip
A175: 2015-10-27 | B175: West | C175: Quad | D175: Gigi
A176: 2014-01-15 | B176: West | C176: Quad | D176: Tyrone
A177: 2014-04-27 | B177: West | C177: Quad | D177: Gigi
A178: 2014-08-30 | B178: West | C178: Quad | D178: Kip
A179: 2014-09-16 | B179: West | C179: Quad | D179: Tyrone
A180: 2015-12-20 | B180: West | C180: Quad | D180: Gigi
A181: 2015-09-28 | B181: West | C181: Quad | D181: Tyrone
A182: 2014-12-30 | B182: West | C182: Quad | D182: Kip
A183: 2015-03-15 | B183: West | C183: Quad | D183: Kip
A184: 2014-11-01 | B184: West | C184: Quad | D184: Dim
A185: 2015-01-16 | B185: West | C185: Quad | D185: Philly
A186: 2015-11-02 | B186: West | C186: Quad | D186: Tyrone
A187: 2014-02-12 | B187: West | C187: Quad | D187: Kip
A188: 2015-10-27 | B188: West | C188: Quad | D188: Chun
A189: 2015-09-07 | B189: West | C189: Quad | D189: Tyrone
A190: 2015-11-03 | B190: West | C190: Quad | D190: Kip
A191: 2014-07-23 | B191: West | C191: Quad | D191: Gigi
A192: 2014-06-29 | B192: West | C192: Quad | D192: Tyrone
A193: 2015-08-22 | B193: West | C193: Quad | D193: Philly
A194: 2015-01-15 | B194: West | C194: Quad | D194: Philly
A195: 2015-09-22 | B195: West | C195: Quad | D195: Dim
A196: 2015-03-28 | B196: West | C196: Quad | D196: Tyrone
A197: 2014-06-13 | B197: West | C197: Quad | D197: Tyrone
A198: 2014-11-03 | B198: West | C198: Quad | D198: Kip
A199: 2015-02-01 | B199: West | C199: Quad | D199: Kip
A200: 2014-05-31 | B200: West | C200: Quad | D200: Kip
... 4300 more rows

Sheet Data Set (an)
A1: Date | B1: Region | C1: Product | D1: Sales Rep | G1: Joint Probability table | H1: Product
A2: 2014-02-08 | B2: West | C2: Quad | D2: Chun | G2: Sales Rep | H2: Quad | I2: Tri-Fly | J2: V Rang | K2: Grand Total
A3: 2015-02-10 | B3: West | C3: Quad | D3: Tyrone | G3: Chun | H3: 0.03554632209 | I3: 0.02894844984 | J3: 0.03582028218 | K3: 0.1003150541
A4: 2014-10-11 | B4: West | C4: Quad | D4: Philly | G4: Dim | H4: 0.03652801242 | I4: 0.02730468928 | J4: 0.03641386238 | K4: 0.1002465641
A5: 2015-10-18 | B5: West | C5: Quad | D5: Kip | G5: Gigi | H5: 0.07022510388 | I5: 0.05748595955 | J5: 0.07111547418 | K5: 0.1988265376
A6: 2015-04-14 | B6: West | C6: Quad | D6: Chun | G6: Kip | H6: 0.07054472399 | I6: 0.05620747911 | J6: 0.0714579243 | K6: 0.1982101274
A7: 2015-01-03 | B7: West | C7: Quad | D7: Philly | G7: Philly | H7: 0.03506689192 | I7: 0.02892561983 | J7: 0.0373498927 | K7: 0.1013424045
A8: 2015-07-20 | B8: West | C8: Quad | D8: Tyrone | G8: Tyrone | H8: 0.1074836765 | I8: 0.08670836948 | J8: 0.1068672663 | K8: 0.3010593124
A9: 2014-02-07 | B9: West | C9: Quad | D9: Chun | G9: Grand Total | H9: 0.3553947308 | I9: 0.2855805671 | J9: 0.3590247021 | K9: 1
A10: 2015-11-24 | B10: West | C10: Quad | D10: Kip
A11: 2014-05-01 | B11: West | C11: Quad | D11: Tyrone | F11: Ex 1: | G11: P(Quad Sold) = | I11: =H9 -> 0.3553947308 | K11: P(Q)
A12: 2015-01-01 | B12: West | C12: Quad | D12: Kip
A13: 2015-03-05 | B13: West | C13: Quad | D13: Kip | F13: Ex 2: | G13: P(Gigi Sold Quad) = | I13: =H5 -> 0.07022510388 | K13: P(G AND Q)
A14: 2014-09-01 | B14: West | C14: Quad | D14: Tyrone
A15: 2015-08-20 | B15: West | C15: Quad | D15: Tyrone | F15: Ex 3: | G15: Sales Team 2 = Tyrone, Gigi, Philly
A16: 2014-03-29 | B16: West | C16: Quad | D16: Chun | G16: P(Team 2 made Sale) = | I16: =K7+K5+K8 -> 0.6012282544 | K16: P(T OR G OR P) | M16: Events are Mutually Exclusive | O16: =G16&" "&_xlfn.TEXTJOIN(" + ",,TEXT(K8,"0.00%"),TEXT(K5,"0.00%"),TEXT(K7,"0.00%"))&" = "&TEXT(SUM(K5,K7,K8),"0.00%") -> P(Team 2 made Sale) = 30.11% + 19.88% + 10.13% = 60.12%
A17: 2014-05-12 | B17: West | C17: Quad | D17: Tyrone
A18: 2015-07-01 | B18: West | C18: Quad | D18: Dim | F18: Ex 4: | G18: P(Sale for V Rang OR Sale by Dim) | I18: =J9+K4-J4 -> 0.4228574038 | K18: P(V) + P(D) - P(V AND D) | N18: Events are NOT Mutually Exclusive, MUST subtract to avoid Double Counting
A19: 2015-09-04 | B19: West | C19: Quad | D19: Philly
A20: 2015-04-16 | B20: West | C20: Quad | D20: Chun | F20: Ex 5: | G20: P(Chun | Try-Fly) | I20: =I3/I9 -> 0.1013670157 | K20: P(C AND TF)/P(TF)
A21: 2014-10-28 | B21: West | C21: Quad | D21: Chun
A22: 2015-07-07 | B22: West | C22: Quad | D22: Philly
A23: 2015-06-18 | B23: West | C23: Quad | D23: Dim | H23: P(Team 2 made Sale) = 30.11% + 19.88% + 10.13% = 60.12%
A24: 2014-10-25 | B24: West | C24: Quad | D24: Gigi
A25: 2014-07-20 | B25: West | C25: Quad | D25: Tyrone
A26: 2015-05-24 | B26: West | C26: Quad | D26: Dim
A27: 2014-02-18 | B27: West | C27: Quad | D27: Tyrone
A28: 2014-10-17 | B28: West | C28: Quad | D28: Philly
A29: 2014-11-30 | B29: West | C29: Quad | D29: Kip
A30: 2015-03-17 | B30: West | C30: Quad | D30: Gigi
A31: 2014-09-05 | B31: West | C31: Quad | D31: Tyrone
A32: 2015-05-29 | B32: West | C32: Quad | D32: Tyrone
A33: 2014-06-17 | B33: West | C33: Quad | D33: Gigi
A34: 2014-07-07 | B34: West | C34: Quad | D34: Chun
A35: 2015-05-10 | B35: West | C35: Quad | D35: Kip
A36: 2015-07-14 | B36: West | C36: Quad | D36: Tyrone
A37: 2014-07-31 | B37: West | C37: Quad | D37: Tyrone
A38: 2015-01-09 | B38: West | C38: Quad | D38: Dim
A39: 2015-05-24 | B39: West | C39: Quad | D39: Tyrone
A40: 2015-07-29 | B40: West | C40: Quad | D40: Kip
A41: 2014-01-04 | B41: West | C41: Quad | D41: Tyrone
A42: 2014-09-23 | B42: West | C42: Quad | D42: Philly
A43: 2015-01-15 | B43: West | C43: Quad | D43: Kip
A44: 2014-07-21 | B44: West | C44: Quad | D44: Dim
A45: 2015-07-25 | B45: West | C45: Quad | D45: Gigi
A46: 2015-01-07 | B46: West | C46: Quad | D46: Philly
A47: 2015-01-19 | B47: West | C47: Quad | D47: Tyrone
A48: 2015-08-21 | B48: West | C48: Quad | D48: Philly
A49: 2015-11-30 | B49: West | C49: Quad | D49: Kip
A50: 2014-06-06 | B50: West | C50: Quad | D50: Tyrone
A51: 2015-10-31 | B51: West | C51: Quad | D51: Tyrone
A52: 2014-02-21 | B52: West | C52: Quad | D52: Kip
A53: 2014-12-17 | B53: West | C53: Quad | D53: Tyrone
A54: 2015-08-01 | B54: West | C54: Quad | D54: Kip
A55: 2014-06-06 | B55: West | C55: Quad | D55: Chun
A56: 2015-03-13 | B56: West | C56: Quad | D56: Tyrone
A57: 2014-11-07 | B57: West | C57: Quad | D57: Chun
A58: 2015-05-30 | B58: West | C58: Quad | D58: Gigi
A59: 2014-01-14 | B59: West | C59: Quad | D59: Philly
A60: 2015-04-08 | B60: West | C60: Quad | D60: Tyrone
A61: 2015-11-29 | B61: West | C61: Quad | D61: Kip
A62: 2014-08-06 | B62: West | C62: Quad | D62: Kip
A63: 2014-10-12 | B63: West | C63: Quad | D63: Gigi
A64: 2015-02-27 | B64: West | C64: Quad | D64: Gigi
A65: 2014-05-30 | B65: West | C65: Quad | D65: Philly
A66: 2014-03-08 | B66: West | C66: Quad | D66: Tyrone
A67: 2015-02-05 | B67: West | C67: Quad | D67: Chun
A68: 2014-07-30 | B68: West | C68: Quad | D68: Kip
A69: 2014-02-02 | B69: West | C69: Quad | D69: Tyrone
A70: 2015-07-29 | B70: West | C70: Quad | D70: Gigi
A71: 2015-12-12 | B71: West | C71: Quad | D71: Kip
A72: 2014-01-07 | B72: West | C72: Quad | D72: Kip
A73: 2015-02-09 | B73: West | C73: Quad | D73: Gigi
A74: 2014-10-10 | B74: West | C74: Quad | D74: Gigi
A75: 2015-12-14 | B75: West | C75: Quad | D75: Gigi
A76: 2015-02-21 | B76: West | C76: Quad | D76: Gigi
A77: 2014-11-26 | B77: West | C77: Quad | D77: Tyrone
A78: 2014-08-02 | B78: West | C78: Quad | D78: Kip
A79: 2015-10-19 | B79: West | C79: Quad | D79: Tyrone
A80: 2014-09-20 | B80: West | C80: Quad | D80: Gigi
A81: 2014-06-08 | B81: West | C81: Quad | D81: Chun
A82: 2014-12-31 | B82: West | C82: Quad | D82: Tyrone
A83: 2014-09-04 | B83: West | C83: Quad | D83: Kip
A84: 2014-06-27 | B84: West | C84: Quad | D84: Philly
A85: 2015-02-03 | B85: West | C85: Quad | D85: Chun
A86: 2015-04-29 | B86: West | C86: Quad | D86: Gigi
A87: 2014-03-30 | B87: West | C87: Quad | D87: Tyrone
A88: 2015-12-08 | B88: West | C88: Quad | D88: Dim
A89: 2015-10-02 | B89: West | C89: Quad | D89: Gigi
A90: 2015-10-12 | B90: West | C90: Quad | D90: Kip
A91: 2015-06-16 | B91: West | C91: Quad | D91: Dim
A92: 2014-12-09 | B92: West | C92: Quad | D92: Gigi
A93: 2014-03-10 | B93: West | C93: Quad | D93: Dim
A94: 2014-01-30 | B94: West | C94: Quad | D94: Kip
A95: 2014-01-11 | B95: West | C95: Quad | D95: Kip
A96: 2015-08-07 | B96: West | C96: Quad | D96: Dim
A97: 2014-08-14 | B97: West | C97: Quad | D97: Tyrone
A98: 2015-12-26 | B98: West | C98: Quad | D98: Philly
A99: 2014-10-13 | B99: West | C99: Quad | D99: Dim
A100: 2015-07-17 | B100: West | C100: Quad | D100: Tyrone
A101: 2014-10-12 | B101: West | C101: Quad | D101: Dim
A102: 2015-11-18 | B102: West | C102: Quad | D102: Tyrone
A103: 2014-02-23 | B103: West | C103: Quad | D103: Kip
A104: 2014-06-25 | B104: West | C104: Quad | D104: Kip
A105: 2015-07-16 | B105: West | C105: Quad | D105: Dim
A106: 2014-08-15 | B106: West | C106: Quad | D106: Tyrone
A107: 2015-04-02 | B107: West | C107: Quad | D107: Philly
A108: 2015-09-01 | B108: West | C108: Quad | D108: Kip
A109: 2014-02-12 | B109: West | C109: Quad | D109: Tyrone
A110: 2014-03-08 | B110: West | C110: Quad | D110: Chun
A111: 2015-06-02 | B111: West | C111: Quad | D111: Tyrone
A112: 2015-02-02 | B112: West | C112: Quad | D112: Gigi
A113: 2014-06-28 | B113: West | C113: Quad | D113: Tyrone
A114: 2014-01-04 | B114: West | C114: Quad | D114: Tyrone
A115: 2015-07-18 | B115: West | C115: Quad | D115: Gigi
A116: 2015-09-22 | B116: West | C116: Quad | D116: Dim
A117: 2014-04-02 | B117: West | C117: Quad | D117: Gigi
A118: 2015-08-23 | B118: West | C118: Quad | D118: Dim
A119: 2014-03-04 | B119: West | C119: Quad | D119: Kip
A120: 2014-03-07 | B120: West | C120: Quad | D120: Kip
A121: 2014-05-07 | B121: West | C121: Quad | D121: Gigi
A122: 2015-11-04 | B122: West | C122: Quad | D122: Tyrone
A123: 2014-02-18 | B123: West | C123: Quad | D123: Tyrone
A124: 2014-02-22 | B124: West | C124: Quad | D124: Chun
A125: 2015-07-02 | B125: West | C125: Quad | D125: Tyrone
A126: 2015-11-23 | B126: West | C126: Quad | D126: Tyrone
A127: 2015-07-09 | B127: West | C127: Quad | D127: Kip
A128: 2015-11-14 | B128: West | C128: Quad | D128: Chun
A129: 2015-07-16 | B129: West | C129: Quad | D129: Tyrone
A130: 2015-08-01 | B130: West | C130: Quad | D130: Kip
A131: 2015-12-02 | B131: West | C131: Quad | D131: Gigi
A132: 2014-11-22 | B132: West | C132: Quad | D132: Tyrone
A133: 2014-06-20 | B133: West | C133: Quad | D133: Dim
A134: 2015-03-17 | B134: West | C134: Quad | D134: Tyrone
A135: 2014-07-17 | B135: West | C135: Quad | D135: Tyrone
A136: 2015-09-11 | B136: West | C136: Quad | D136: Gigi
A137: 2014-11-02 | B137: West | C137: Quad | D137: Gigi
A138: 2014-11-20 | B138: West | C138: Quad | D138: Chun
A139: 2014-04-06 | B139: West | C139: Quad | D139: Kip
A140: 2015-07-23 | B140: West | C140: Quad | D140: Tyrone
A141: 2014-11-14 | B141: West | C141: Quad | D141: Tyrone
A142: 2014-07-06 | B142: West | C142: Quad | D142: Dim
A143: 2014-09-05 | B143: West | C143: Quad | D143: Dim
A144: 2014-07-19 | B144: West | C144: Quad | D144: Gigi
A145: 2014-07-26 | B145: West | C145: Quad | D145: Chun
A146: 2015-06-12 | B146: West | C146: Quad | D146: Gigi
A147: 2015-03-31 | B147: West | C147: Quad | D147: Tyrone
A148: 2014-08-11 | B148: West | C148: Quad | D148: Tyrone
A149: 2014-09-24 | B149: West | C149: Quad | D149: Tyrone
A150: 2015-06-27 | B150: West | C150: Quad | D150: Kip
A151: 2014-11-01 | B151: West | C151: Quad | D151: Gigi
A152: 2014-07-14 | B152: West | C152: Quad | D152: Tyrone
A153: 2015-11-15 | B153: West | C153: Quad | D153: Tyrone
A154: 2015-03-30 | B154: West | C154: Quad | D154: Kip
A155: 2015-11-13 | B155: West | C155: Quad | D155: Philly
A156: 2015-11-08 | B156: West | C156: Quad | D156: Gigi
A157: 2014-07-27 | B157: West | C157: Quad | D157: Kip
A158: 2015-09-02 | B158: West | C158: Quad | D158: Kip
A159: 2015-01-13 | B159: West | C159: Quad | D159: Gigi
A160: 2014-09-18 | B160: West | C160: Quad | D160: Philly
A161: 2015-08-01 | B161: West | C161: Quad | D161: Philly
A162: 2015-06-02 | B162: West | C162: Quad | D162: Dim
A163: 2015-01-31 | B163: West | C163: Quad | D163: Gigi
A164: 2015-03-30 | B164: West | C164: Quad | D164: Gigi
A165: 2014-03-29 | B165: West | C165: Quad | D165: Tyrone
A166: 2015-11-20 | B166: West | C166: Quad | D166: Tyrone
A167: 2014-09-27 | B167: West | C167: Quad | D167: Gigi
A168: 2015-07-18 | B168: West | C168: Quad | D168: Tyrone
A169: 2014-06-15 | B169: West | C169: Quad | D169: Kip
A170: 2014-01-21 | B170: West | C170: Quad | D170: Gigi
A171: 2015-10-12 | B171: West | C171: Quad | D171: Chun
A172: 2014-05-18 | B172: West | C172: Quad | D172: Tyrone
A173: 2015-07-02 | B173: West | C173: Quad | D173: Gigi
A174: 2014-11-25 | B174: West | C174: Quad | D174: Kip
A175: 2015-10-27 | B175: West | C175: Quad | D175: Gigi
A176: 2014-01-15 | B176: West | C176: Quad | D176: Tyrone
A177: 2014-04-27 | B177: West | C177: Quad | D177: Gigi
A178: 2014-08-30 | B178: West | C178: Quad | D178: Kip
A179: 2014-09-16 | B179: West | C179: Quad | D179: Tyrone
A180: 2015-12-20 | B180: West | C180: Quad | D180: Gigi
A181: 2015-09-28 | B181: West | C181: Quad | D181: Tyrone
A182: 2014-12-30 | B182: West | C182: Quad | D182: Kip
A183: 2015-03-15 | B183: West | C183: Quad | D183: Kip
A184: 2014-11-01 | B184: West | C184: Quad | D184: Dim
A185: 2015-01-16 | B185: West | C185: Quad | D185: Philly
A186: 2015-11-02 | B186: West | C186: Quad | D186: Tyrone
A187: 2014-02-12 | B187: West | C187: Quad | D187: Kip
A188: 2015-10-27 | B188: West | C188: Quad | D188: Chun
A189: 2015-09-07 | B189: West | C189: Quad | D189: Tyrone
A190: 2015-11-03 | B190: West | C190: Quad | D190: Kip
A191: 2014-07-23 | B191: West | C191: Quad | D191: Gigi
A192: 2014-06-29 | B192: West | C192: Quad | D192: Tyrone
A193: 2015-08-22 | B193: West | C193: Quad | D193: Philly
A194: 2015-01-15 | B194: West | C194: Quad | D194: Philly
A195: 2015-09-22 | B195: West | C195: Quad | D195: Dim
A196: 2015-03-28 | B196: West | C196: Quad | D196: Tyrone
A197: 2014-06-13 | B197: West | C197: Quad | D197: Tyrone
A198: 2014-11-03 | B198: West | C198: Quad | D198: Kip
A199: 2015-02-01 | B199: West | C199: Quad | D199: Kip
A200: 2014-05-31 | B200: West | C200: Quad | D200: Kip
... 4300 more rows

Sheet BT(1)
A1: Persons | B1: Passed CPA
A2: Test | B2: CPA
A3: Test Hurdle | B3: 750
A5: Event | B5: Notation | C5: P(X) | D5: P(X)
A6: =$B$2&" Score >="&$B$3 -> CPA Score >=750 | B6: =">="&$B$3 -> >=750 | C6: ="P("&B6&")" -> P(>=750) | D6: 0.25 | F6: Prior Probability - estimate by individual
A7: =$B$2&" Score <"&$B$3 -> CPA Score <750 | B7: ="<"&$B$3 -> <750 | C7: ="P("&B7&")" -> P(<750) | F7: =B6&" and "&B7&" are events that are Mutually Exclusive and Collectively Exhaustive" -> >=750 and <750 are events that are Mutually Exclusive and Collectively Exhaustive
A8: Took Prep Course | B8: PC | C8: P(PC)
A9: Not Take Prep Course | B9: NPC | C9: P(NPC)
A11: =A8&" | "&$A$6 -> Took Prep Course | CPA Score >=750 | B11: ="P("&B8&" | "&$B$6&")" -> P(PC | >=750) | C11: 0.6 | E11: ="Survey of recent "&B1 -> Survey of recent Passed CPA
A12: =A9&" | "&$A$6 -> Not Take Prep Course | CPA Score >=750 | B12: ="P("&B9&" | "&$B$6&")" -> P(NPC | >=750) | E12: Conditional Probabilities
A14: =A8&" | "&$A$7 -> Took Prep Course | CPA Score <750 | B14: ="P("&B8&" | "&$B$7&")" -> P(PC | <750) | C14: 0.31 | E14: =E11 -> Survey of recent Passed CPA
A15: =A9&" | "&$A$7 -> Not Take Prep Course | CPA Score <750 | B15: ="P("&B9&" | "&$B$7&")" -> P(NPC | <750) | E15: Conditional Probabilities
B17: Prior | D17: Conditional | G17: Joint, AND | J17: Posterior (Revised Probabilities)
D19: =B11 -> P(PC | >=750) | G19: ="P("&B6&" AND "&B8&")" -> P(>=750 AND PC)
B20: =C6 -> P(>=750) | J20: ="P("&B6&" | "&B8&")" -> P(>=750 | PC)
D21: =B12 -> P(NPC | >=750) | G21: ="P("&B6&" AND "&B9&")" -> P(>=750 AND NPC)
D23: =B14 -> P(PC | <750) | G23: ="P("&B7&" AND "&B8&")" -> P(<750 AND PC)
B24: =C7 -> P(<750) | J24: ="P("&B7&" | "&B8&")" -> P(<750 | PC)
D25: =B15 -> P(NPC | <750) | G25: ="P("&B7&" AND "&B9&")" -> P(<750 AND NPC)
B28: Prior | D28: Conditional | F28: Joint, AND | H28: Posterior
B29: =B20 -> P(>=750) | C29: =C20 -> 0 | D29: =D19 -> P(PC | >=750) | E29: =E19 -> 0 | F29: =G19 -> P(>=750 AND PC) | H29: ="P("&B6&" | "&$B$8&")" -> P(>=750 | PC)
B30: =B24 -> P(<750) | C30: =C24 -> 0 | D30: =D23 -> P(PC | <750) | E30: =E23 -> 0 | F30: =G23 -> P(<750 AND PC) | H30: ="P("&B7&" | "&$B$8&")" -> P(<750 | PC)
F31: P(PC)
G33: Remember: Conditional = AND/Marginal
F35: P(NPC) | G35: =1-G31 -> 1

Sheet BT(1an)
A1: Persons | B1: Passed CPA
A2: Test | B2: CPA
A3: Test Hurdle | B3: 750
A5: Event | B5: Notation | C5: P(X) | D5: P(X)
A6: =$B$2&" Score >="&$B$3 -> CPA Score >=750 | B6: =">="&$B$3 -> >=750 | C6: ="P("&B6&")" -> P(>=750) | D6: 0.25 | F6: Prior Probability - estimate by individual
A7: =$B$2&" Score <"&$B$3 -> CPA Score <750 | B7: ="<"&$B$3 -> <750 | C7: ="P("&B7&")" -> P(<750) | D7: =1-D6 -> 0.75 | F7: =B6&" and "&B7&" are events that are Mutually Exclusive and Collectively Exhaustive" -> >=750 and <750 are events that are Mutually Exclusive and Collectively Exhaustive
A8: Took Prep Course | B8: PC | C8: P(PC)
A9: Not Take Prep Course | B9: NPC | C9: P(NPC)
A11: =A8&" | "&$A$6 -> Took Prep Course | CPA Score >=750 | B11: ="P("&B8&" | "&$B$6&")" -> P(PC | >=750) | C11: 0.6 | E11: ="Survey of recent "&B1 -> Survey of recent Passed CPA
A12: =A9&" | "&$A$6 -> Not Take Prep Course | CPA Score >=750 | B12: ="P("&B9&" | "&$B$6&")" -> P(NPC | >=750) | C12: =1-C11 -> 0.4 | E12: Conditional Probabilities
A14: =A8&" | "&$A$7 -> Took Prep Course | CPA Score <750 | B14: ="P("&B8&" | "&$B$7&")" -> P(PC | <750) | C14: 0.31 | E14: =E11 -> Survey of recent Passed CPA
A15: =A9&" | "&$A$7 -> Not Take Prep Course | CPA Score <750 | B15: ="P("&B9&" | "&$B$7&")" -> P(NPC | <750) | C15: =1-C14 -> 0.69 | E15: Conditional Probabilities
B17: Prior | D17: Conditional | G17: Joint, AND | J17: Posterior (Revised Probabilities)
D19: =B11 -> P(PC | >=750) | E19: =C11 -> 0.6 | G19: ="P("&B6&" AND "&B8&")" -> P(>=750 AND PC) | H19: =C20*E19 -> 0.15
B20: =C6 -> P(>=750) | C20: =D6 -> 0.25 | J20: ="P("&B6&" | "&B8&")" -> P(>=750 | PC) | K20: =H19/(H19+H23) -> 0.3921568627
D21: =B12 -> P(NPC | >=750) | E21: =C12 -> 0.4 | G21: ="P("&B6&" AND "&B9&")" -> P(>=750 AND NPC) | H21: =C20*E21 -> 0.1
D23: =B14 -> P(PC | <750) | E23: =C14 -> 0.31 | G23: ="P("&B7&" AND "&B8&")" -> P(<750 AND PC) | H23: =C24*E23 -> 0.2325
B24: =C7 -> P(<750) | C24: =D7 -> 0.75 | J24: ="P("&B7&" | "&B8&")" -> P(<750 | PC) | K24: =H23/(H19+H23) -> 0.6078431373
D25: =B15 -> P(NPC | <750) | E25: =C15 -> 0.69 | G25: ="P("&B7&" AND "&B9&")" -> P(<750 AND NPC) | H25: =C24*E25 -> 0.5175
B28: Prior | D28: Conditional | F28: Joint, AND | H28: Posterior
B29: =B20 -> P(>=750) | C29: =C20 -> 0.25 | D29: =D19 -> P(PC | >=750) | E29: =E19 -> 0.6 | F29: =G19 -> P(>=750 AND PC) | G29: =C29*E29 -> 0.15 | H29: ="P("&B6&" | "&$B$8&")" -> P(>=750 | PC) | I29: =G29/G31 -> 0.3921568627
B30: =B24 -> P(<750) | C30: =C24 -> 0.75 | D30: =D23 -> P(PC | <750) | E30: =E23 -> 0.31 | F30: =G23 -> P(<750 AND PC) | G30: =C30*E30 -> 0.2325 | H30: ="P("&B7&" | "&$B$8&")" -> P(<750 | PC) | I30: =G30/G31 -> 0.6078431373
F31: P(PC) | G31: =SUM(G29:G30) -> 0.3825
G33: Remember: Conditional = AND/Marginal
F35: P(NPC) | G35: =1-G31 -> 0.6175

Sheet B(2)
A1: Array: Bayes' Theorem
A2: SUMPRODUCT function
B4: Events:
A5: Prior | B5: GO = Garage Open
A6: Prior | B6: GNO = Garage Not Open
B7: SS = Stuff Stolen
B8: SNS = Stuff Not Stolen
A10: Event & P(x) | B10: Prior Probability or Marginal Prob | C10: P(x) | D10: Conditional Probability | E10: P(x) | F10: Joint Probability | G10: P(x) | H10: Posterior Probability
A11: Leave garage open = P(GO) | B11: 0.2 | C11: Stuff Stolen, Given Leave garage open = P(SS | GO) | D11: 0.05 | E11: P(GO AND SS) | G11: P(GO | SS) | J11: Conditional = AND/Marginal
A12: Not Leave garage open = P(GNO) | B12: =1-B11 -> 0.8 | C12: Stuff Stolen, Given Not Leave garage open = P(SS | GNO) | D12: 0.01 | E12: P(GNO AND SS) | G12: P(GNO | SS) | J12: Conditional = AND/Marginal
B13: =SUM(B11:B12) -> 1 | E13: P(Stuff Stolen)
A15: Single Cell Formula: | B15: P(GO | SS) | E15: P(SNS) | F15: =1-F13 -> 1

Sheet B(2an)
A1: Array: Bayes' Theorem
A2: SUMPRODUCT function
B4: Events:
A5: Prior | B5: GO = Garage Open
A6: Prior | B6: GNO = Garage Not Open
B7: SS = Stuff Stolen
B8: SNS = Stuff Not Stolen
A10: Event & P(x) | B10: Prior Probability or Marginal Prob | C10: P(x) | D10: Conditional Probability | E10: P(x) | F10: Joint Probability | G10: P(x) | H10: Posterior Probability
A11: Leave garage open = P(GO) | B11: 0.2 | C11: Stuff Stolen, Given Leave garage open = P(SS | GO) | D11: 0.05 | E11: P(GO AND SS) | F11: =B11*D11 -> 0.01 | G11: P(GO | SS) | H11: =F11/$F$13 -> 0.5555555556 | J11: Conditional = AND/Marginal
A12: Not Leave garage open = P(GNO) | B12: =1-B11 -> 0.8 | C12: Stuff Stolen, Given Not Leave garage open = P(SS | GNO) | D12: 0.01 | E12: P(GNO AND SS) | F12: =B12*D12 -> 0.008 | G12: P(GNO | SS) | H12: =F12/$F$13 -> 0.4444444444 | J12: Conditional = AND/Marginal
B13: =SUM(B11:B12) -> 1 | E13: P(Stuff Stolen) | F13: =SUM(F11:F12) -> 0.018
A15: Single Cell Formula: | B15: P(GO | SS) | C15: =B11*D11/SUMPRODUCT(B11:B12,D11:D12) -> 0.5555555556 | E15: P(SNS) | F15: =1-F13 -> 0.982

Sheet New Information From Survey
A1: Survey of people who took CPA exam:
A2: Q1: What was your score (0-1000)?
A3: Q2: Did you take a Preparation Course (PC or NPC)?
A5: Score | B5: Prep Course | D5: Count of Prep Course | E5: Score
A6: 945 | B6: PC | D6: Prep Course | E6: <750 | F6: >=750
A7: 846 | B7: PC | D7: NPC | E7: 0.69 | F7: 0.4
A8: 903 | B8: PC | D8: PC | E8: 0.31 | F8: 0.6
A9: 795 | B9: PC | D9: Grand Total | E9: 1 | F9: 1
A10: 865 | B10: PC
A11: 765 | B11: PC
A12: 802 | B12: PC
A13: 921 | B13: PC
A14: 948 | B14: PC
A15: 893 | B15: PC
A16: 800 | B16: PC
A17: 891 | B17: PC
A18: 878 | B18: PC
A19: 874 | B19: PC
A20: 810 | B20: PC
A21: 824 | B21: PC
A22: 762 | B22: PC
A23: 761 | B23: PC
A24: 893 | B24: PC
A25: 898 | B25: PC
A26: 965 | B26: PC
A27: 874 | B27: PC
A28: 940 | B28: PC
A29: 754 | B29: PC
A30: 928 | B30: PC
A31: 757 | B31: PC
A32: 933 | B32: PC
A33: 762 | B33: PC
A34: 992 | B34: PC
A35: 955 | B35: PC
A36: 896 | B36: PC
A37: 845 | B37: PC
A38: 819 | B38: PC
A39: 969 | B39: PC
A40: 998 | B40: PC
A41: 761 | B41: PC
A42: 829 | B42: PC
A43: 935 | B43: PC
A44: 842 | B44: PC
A45: 955 | B45: PC
A46: 919 | B46: PC
A47: 891 | B47: PC
A48: 896 | B48: PC
A49: 940 | B49: PC
A50: 809 | B50: PC
A51: 881 | B51: PC
A52: 928 | B52: PC
A53: 871 | B53: PC
A54: 818 | B54: PC
A55: 801 | B55: PC
A56: 889 | B56: PC
A57: 812 | B57: PC
A58: 856 | B58: PC
A59: 756 | B59: PC
A60: 941 | B60: PC
A61: 862 | B61: PC
A62: 933 | B62: PC
A63: 877 | B63: PC
A64: 851 | B64: PC
A65: 846 | B65: PC
A66: 987 | B66: PC
A67: 954 | B67: PC
A68: 894 | B68: PC
A69: 832 | B69: PC
A70: 859 | B70: PC
A71: 952 | B71: PC
A72: 939 | B72: PC
A73: 983 | B73: PC
A74: 960 | B74: PC
A75: 901 | B75: PC
A76: 847 | B76: PC
A77: 785 | B77: PC
A78: 782 | B78: PC
A79: 768 | B79: PC
A80: 767 | B80: PC
A81: 862 | B81: PC
A82: 851 | B82: PC
A83: 760 | B83: PC
A84: 929 | B84: PC
A85: 799 | B85: PC
A86: 921 | B86: PC
A87: 814 | B87: PC
A88: 890 | B88: PC
A89: 750 | B89: PC
A90: 979 | B90: PC
A91: 833 | B91: PC
A92: 832 | B92: PC
A93: 768 | B93: PC
A94: 943 | B94: PC
A95: 810 | B95: PC
A96: 981 | B96: PC
A97: 811 | B97: PC
A98: 776 | B98: PC
A99: 934 | B99: PC
A100: 978 | B100: PC
A101: 836 | B101: PC
A102: 875 | B102: PC
A103: 777 | B103: PC
A104: 789 | B104: PC
A105: 839 | B105: PC
A106: 839 | B106: PC
A107: 801 | B107: PC
A108: 985 | B108: PC
A109: 891 | B109: PC
A110: 804 | B110: PC
A111: 799 | B111: PC
A112: 812 | B112: PC
A113: 950 | B113: PC
A114: 804 | B114: PC
A115: 839 | B115: PC
A116: 891 | B116: PC
A117: 951 | B117: PC
A118: 822 | B118: PC
A119: 863 | B119: PC
A120: 767 | B120: PC
A121: 800 | B121: PC
A122: 759 | B122: PC
A123: 795 | B123: PC
A124: 786 | B124: PC
A125: 776 | B125: PC
A126: 1000 | B126: PC
A127: 793 | B127: PC
A128: 907 | B128: PC
A129: 936 | B129: PC
A130: 974 | B130: PC
A131: 814 | B131: PC
A132: 806 | B132: PC
A133: 985 | B133: PC
A134: 832 | B134: PC
A135: 930 | B135: PC
A136: 985 | B136: PC
A137: 915 | B137: PC
A138: 762 | B138: PC
A139: 819 | B139: PC
A140: 932 | B140: PC
A141: 811 | B141: PC
A142: 750 | B142: PC
A143: 772 | B143: PC
A144: 930 | B144: PC
A145: 891 | B145: PC
A146: 853 | B146: PC
A147: 896 | B147: PC
A148: 979 | B148: PC
A149: 909 | B149: PC
A150: 797 | B150: PC
A151: 837 | B151: PC
A152: 956 | B152: PC
A153: 852 | B153: PC
A154: 914 | B154: PC
A155: 962 | B155: PC
A156: 917 | B156: PC
A157: 780 | B157: PC
A158: 782 | B158: PC
A159: 806 | B159: PC
A160: 990 | B160: PC
A161: 852 | B161: PC
A162: 847 | B162: PC
A163: 956 | B163: PC
A164: 936 | B164: PC
A165: 951 | B165: PC
A166: 882 | B166: PC
A167: 940 | B167: PC
A168: 844 | B168: PC
A169: 986 | B169: PC
A170: 992 | B170: PC
A171: 785 | B171: PC
A172: 774 | B172: PC
A173: 975 | B173: PC
A174: 771 | B174: PC
A175: 820 | B175: PC
A176: 774 | B176: PC
A177: 805 | B177: PC
A178: 787 | B178: PC
A179: 750 | B179: PC
A180: 873 | B180: PC
A181: 869 | B181: PC
A182: 976 | B182: PC
A183: 958 | B183: PC
A184: 879 | B184: PC
A185: 864 | B185: PC
A186: 767 | B186: PC
A187: 924 | B187: PC
A188: 945 | B188: PC
A189: 796 | B189: PC
A190: 983 | B190: PC
A191: 981 | B191: PC
A192: 823 | B192: PC
A193: 873 | B193: PC
A194: 791 | B194: PC
A195: 963 | B195: PC
A196: 965 | B196: PC
A197: 789 | B197: PC
A198: 779 | B198: PC
A199: 938 | B199: PC
A200: 966 | B200: PC
A201: 877 | B201: PC
... 9804 more rows
